{"text_format":"1","workbook":"xlsx","n_sheets":15,"sheets":["Aide","Dépenses prévisionnelles","Ressources","Frais de personnel ","Ventilation par années","Listes","liste déroulante","Echéance versement FEDER","FN1 ","recap chef de file","Fiche Navette 2","recap partenaire 1","recap partenaire 2","recap partenaire 3","Feuil3"],"not_rendered":{"charts":0,"images":8,"macros":1,"external_links":2,"defined_names":11,"comments":1,"pivot_tables":0},"unopened":[],"bounds":{"document_bytes":16777216,"sheet_cells":100000,"rows_first":2000,"rows_last":500,"rows_between":2000,"halvings":0,"cell_chars":16384,"cell_head_chars":4096},"cells_cut":0,"cells_raw":0,"read":"whole","date_system":"1900"}

{"sheet":"Aide","index":0,"n_rows":92,"n_cols":9,"rows_kept":92,"cut":false,"hidden":false,"merged":[[16,8,17,12],[22,3,26,8],[18,8,19,10]]}
["Comment remplir l'annexe Plan de financement pour les opérations collaboratives ?"]
[]
["Cette annexe est composée de huit onglets interdépendants :"]
[null,"1/ dépenses prévisionnelles"]
[null,"2/ ressources"]
[null,"3/ frais de personnel"]
[null,"4/ ventilation par années"]
[null,"5/ échéance versement FEDER"]
[null,"6/ recap chef de file"]
[null,"7/ recap partenaire 1"]
[null,"8/ recap partenaire 2"]
[]
["Dans chaque onglet, le porteur de projet peut insérer de nouvelles lignes lorsque cela s'avère nécessaire. Les formules toutefois sont pré-définies et ne peuvent pas être modifiées."]
["Des explications précises sur les modalités de justifications des dépenses et des ressources (et notamment des formules de calculs) sont disponibles dans les fiches pratiques du Guide du porteur."]
[]
[]
["Dans la plupart des onglets, il est possible : ",null,null,null,null,null,null,null,"1/ de développer ou réduire des champs en cliquant sur les \"+\" apparaissant à gauche de l'écran :"]
[]
[null,null,null,null,null,null,null,null,"Cette fonctionnalité permet d'obtenir des tableaux synthétiques."]
[]
[]
[]
[null,null,null,"2/ De sélectionner une réponse parmi une liste déroulante de choix. Dans ce cas, un commentaire en jaune apparaît pour vous indiquer la réponse attendue. Pour sélectionner une des options de la liste, cliquer sur la flèche apparaissant en  bas à droite de la cellule."]
[]
[]
[]
[]
[]
[]
[]
[]
[]
[]
[]
[]
[]
[]
[]
[]
[]
[]
[]
[]
[]
[]
[]
["Dans certains onglets, des montants sont renseignés automatiquement lorsque les autres sont remplis. Par exemple :"]
[]
["La ligne dépenses directes de personnel est renseignée automatiquement à partir de l'onglet \"frais de personnel\". Aucun montant ne peut être saisi à la main dans cette case."]
[]
[]
[]
[]
[]
[]
[]
[]
[]
[]
[]
[]
[]
[]
[]
[]
[]
[]
[]
[]
[]
["La partie \"dépenses\" de l'onglet \"ressources\" est automatiquement renseignée à partir des informations issues de l'onget \"dépenses prévisionnelles\" :"]
[]
[]
[]
[]
[]
[]
[]
[]
[]
[]
[]
[]
[]
[]
[]
[]
[]
[]
[]
[]
["N'hésitez pas à vous appuyer sur votre animateur référent sur le Massif central, ainsi que l'instructeur FEDER du GIP Massif central pour les points les plus complexes de votre demande de subvention."]

{"sheet":"Dépenses prévisionnelles","index":1,"n_rows":295,"n_cols":32,"rows_kept":295,"cut":false,"hidden":false,"merged":[[294,3,294,4],[274,3,275,4],[285,3,286,4],[274,7,275,8],[276,7,277,8],[287,3,288,4],[276,3,277,4],[290,3,290,4],[283,7,283,8],[279,7,279,8],[281,7,281,8],[283,3,283,4],[279,3,279,4],[281,3,281,4],[294,7,294,8],[14,8,14,27],[14,29,14,31],[1,3,1,4],[2,3,2,4],[3,3,3,4],[4,3,4,4],[12,3,12,4],[1,6,3,27],[4,6,4,27],[8,1,8,27],[10,1,11,4],[12,1,12,2],[76,1,76,27],[140,2,140,5],[141,1,141,27],[59,1,63,1],[110,1,112,1],[113,1,115,1],[75,2,75,5],[109,1,109,27],[49,1,53,1],[54,1,58,1],[64,1,68,1],[16,1,16,27],[48,1,48,27],[47,2,47,5],[108,2,108,5],[237,2,237,5],[238,1,238,27],[116,1,118,1],[119,1,121,1],[173,2,173,5],[206,1,206,27],[174,1,174,27],[205,2,205,5],[285,7,286,8],[287,7,288,8],[290,7,290,8],[292,7,292,8],[270,2,270,5],[271,1,271,5],[292,3,292,4]]}
[]
[null,null,"Intitulé de l'opération",null,null,null,"Annexe 1 : Plan de financement\nProgrammation FEDER Massif central 2014-2020\nConvention interrégionale du Massif central"]
[null,null,"Bénéficiaire"]
[null,null,"N° administratif du dossier"]
[null,null,"Dates de début et de fin de l'opération",null,null,null,"Cadre règlementaire : Programme Opérationnel Interrégionnal FEDER Massif central 2014-2020, Convention interrégionale du Massif central"]
[]
[]
[]
[null,"Onglet 1 - Tableau récapitulatif des dépenses prévisionnelles de l'opération collaborative"]
[]
[null,"A remplir par le chef de file pour tout le partenariat"]
[]
[null,"Régime TVA",null,"-"]
[]
[null,null,null,null,null,null,null,null,"Ventilation par action\n(le cas échéant)",null,null,null,null,null,null,null,null,null,null,null,null,null,null,null,null,null,null,null,null,"A renseigner par le service instructeur\n(lors de l'instruction du dossier)"]
[null,"Nom du chef de file et des partenaires","Sous catégories de dépense","N° de facture ou de devis","Coût unitaire\n(reporter le coût unitaire, sa méthode de calcul le cas échéant et sa nature (prestation, barème kilométrique, forfait repas…))","Nombre d'unités (Temps ou pourcentage prévisionnel consacré au projet, nombre de prestations prévues, nombre de KM parcourus, etc)","Explication de la base de calcul et de la clé de répartition retenue","Montant prévisionnel total","Action\n1","Action\n2","Action\n3","Action\n4","Action\n5","Action\n6","Action\n7","Action\n8","Action\n9","Action\n10","Action\n11","Action\n12","Action\n13","Action\n14","Action\n15","Action\n16","Action\n17","Action\n18","Action\n19","Action\n20",null,"Montant proposé en vue de la programmation","Motif en cas d'écart (ex : dépenses inéligibles)","Postes de dépenses forfaitisées : O/N"]
[null,"Dépenses directes de personnel "]
[null,"Total partenariat","Salaires bruts chargés",null,null,null,"Cf onglet \"Frais de personnel\"",{"$f":"ROUND('Frais de personnel '!I125,0)","v":0}]
[]
[]
[]
[]
[]
[]
[]
[]
[]
[]
[]
[]
[]
[]
[]
[]
[]
[]
[]
[]
[]
[]
[]
[]
[]
[]
[]
[]
[]
[null,null,"Total du poste",null,null,null,null,{"$f":"SUM(H18:H47)","v":0},{"$f":"SUM(I18:I47)","v":0},0,0,0,0,0,0,0,0,0,0,0,0,0,0,0,0,0,0,0,null,{"$f":"SUM(AD18:AD47)","v":0}]
[null,"Frais de mission du personnel - ventilation indicative - Attention certaines dépenses sont éligibles uniquement pour les associations"]
[null,"Chef de file","Déplacements transports en commun - uniquement pour les assocations",null,"\n\n\n\n\n",null,""]
[null,null,"Déplacements véhicules personnels ou de service - uniqument pour les associations"]
[null,null,"Frais d'essence pour la location voiture spécifique à l'action (remboursement au barème national) : uniquement pour associations"]
[null,null,"Repas - Forfait 15,25",null,15.25]
[null,null,"Nuitées - Plafond 60€ par nuitée"]
[null,"partenaire 1","Déplacements transports en commun - uniquement pour les assocations"]
[null,null,"Déplacements véhicules personnels ou de service - uniqument pour les associations"]
[null,null,"Frais d'essence pour la location voiture spécifique à l'action (remboursement au barème national) : uniquement pour associations"]
[null,null,"Repas - Forfait 15,25",null,15.25]
[null,null,"Nuitées - Plafond 60€ par nuitée"]
[null,"Partenaire 2","Déplacements transports en commun - uniquement pour les assocations"]
[null,null,"Déplacements véhicules personnels ou de service - uniqument pour les associations"]
[null,null,"Frais d'essence pour la location voiture spécifique à l'action (remboursement au barème national) : uniquement pour associations"]
[null,null,"Repas - Forfait 15,25"]
[null,null,"Nuitées - Plafond 60€ par nuitée"]
[null,"Partenaire 3","Déplacements transports en commun"]
[null,null,"Déplacements véhicules personnels ou de service"]
[null,null,"Repas"]
[null,null,"Nuitées"]
[null,null,"Péages"]
[]
[]
[null,null,null,null,null,null,""]
[null,null,null,null,null,null,""]
[null,null,null,null,null,null,""]
[null,null,null,null,null,null,""]
[null,null,"Total du poste",null,null,null,null,{"$f":"SUM(H50:H75)","v":0},0,0,0,0,0,0,0,0,0,0,0,0,0,0,0,0,0,0,0,0,null,{"$f":"SUM(AD50:AD75)","v":0}]
[null,"Coûts indirects - pour tous les porteurs"]
[null,"Chef de file","Taux forfaitaire (associations exclusivement - hors fonds Etat)",null,null,"15% des dépenses directes de personnel (ligne 17)"]
[null,"Partenaire 1","Taux forfaitaire (associations exclusivement - hors fonds Etat)",null,null,"15% des dépenses directes de personnel (ligne 17)"]
[null,"Partenaire 2","Taux forfaitaire (associations exclusivement - hors fonds Etat)",null,null,"15% des dépenses directes de personnel (ligne 17)"]
[null,"Partenaire 3","Taux forfaitaire (associations exclusivement - hors fonds Etat)",null,null,"15% des dépenses directes de personnel (ligne 17)"]
[]
[]
[]
[]
[]
[]
[]
[]
[]
[]
[]
[]
[]
[]
[]
[]
[]
[]
[]
[]
[]
[]
[]
[]
[]
[]
[]
[null,null,"Total du poste",null,null,null,null,{"$f":"SUM(H78:H108)","v":0},0,0,0,0,0,0,0,0,0,0,0,0,0,0,0,0,0,0,0,0,null,{"$f":"SUM(AD78:AD108)","v":0}]
[null,"Prestations externes"]
[null,"chef de file"]
[]
[]
[null,"Partenaire 1"]
[]
[]
[null,"Partenaire 2"]
[]
[]
[null,"Partenaire 3"]
[]
[]
[]
[]
[]
[]
[]
[]
[]
[]
[]
[]
[]
[]
[]
[]
[]
[]
[]
[]
[null,null,"Total du poste",null,null,null,null,{"$f":"SUM(H111:H140)","v":0},{"$f":"SUM(I111:I140)","v":0},0,0,0,0,0,0,0,0,0,0,0,0,0,0,0,0,0,0,0,null,{"$f":"SUM(AD111:AD140)","v":0}]
[null,"Investissements matériels et immatériels"]
[null,"Chef de file"]
[null,"Partenaire 1"]
[null,"Partenaire 2"]
[null,"Partenaire 3"]
[]
[]
[]
[]
[]
[]
[]
[]
[]
[]
[]
[]
[]
[]
[]
[]
[]
[]
[]
[]
[]
[]
[]
[]
[]
[]
[]
[null,null,"Total du poste",null,null,null,null,{"$f":"SUM(H143:H173)","v":0},{"$f":"SUM(I143:I173)","v":0},0,0,0,0,0,0,0,0,0,0,0,0,0,0,0,0,0,0,0,null,{"$f":"SUM(AD143:AD173)","v":0}]
[null,"Acquisitions foncières et immobilières"]
[null,"Chef de file"]
[null,"Partenaire 1"]
[null,"Partenaire 2"]
[null,"Partenaire 3"]
[]
[]
[]
[]
[]
[]
[]
[]
[]
[]
[]
[]
[]
[]
[]
[]
[]
[]
[]
[]
[]
[]
[]
[]
[]
[]
[null,null,"Total du poste",null,null,null,null,{"$f":"SUM(H176:H205)","v":0},{"$f":"SUM(I176:I205)","v":0},0,0,0,0,0,0,0,0,0,0,0,0,0,0,0,0,0,0,0,null,{"$f":"SUM(AD176:AD205)","v":0}]
[null,"Apports en nature"]
[null,"Chef de file","Bénévolat, mise à disposition gracieuse de personnel, prêt de salle, etc"]
[null,"Partenaire 1","Bénévolat, mise à disposition gracieuse de personnel, prêt de salle, etc"]
[null,"Partenaire 2","Bénévolat, mise à disposition gracieuse de personnel, prêt de salle, etc"]
[null,"Partenaire 3","Bénévolat, mise à disposition gracieuse de personnel, prêt de salle, etc"]
[]
[]
[]
[]
[]
[]
[]
[]
[]
[]
[]
[]
[]
[]
[]
[]
[]
[]
[]
[]
[]
[]
[]
[]
[]
[]
[null,null,"Total du poste",null,null,null,null,{"$f":"SUM(H208:H237)","v":0},{"$f":"SUM(I208:I237)","v":0},0,0,0,0,0,0,0,0,0,0,0,0,0,0,0,0,0,0,0,null,{"$f":"SUM(AD208:AD237)","v":0}]
[null,"Autres dépenses (à spécifier)- ventilation indicative - Attention certaines dépenses sont éligibles uniquement pour les associations"]
[null,"Chef de file","Frais préparatoires"]
[null,null,"Location de voiture spécifique à l'action uniquement pour associations => Attention il s'agit de prestations pour location"]
[null,"Partenaire 1"]
[null,"Partenaire 2"]
[null,"Partenaire 3"]
[]
[]
[]
[]
[]
[]
[]
[]
[]
[]
[]
[]
[]
[]
[]
[]
[]
[]
[]
[]
[]
[]
[]
[]
[]
[]
[null,null,"Total du poste",null,null,null,null,{"$f":"SUM(H240:H270)","v":0},{"$f":"SUM(I240:I270)","v":0},0,0,0,0,0,0,0,0,0,0,0,0,0,0,0,0,0,0,0,null,{"$f":"SUM(AD240:AD270)","v":0}]
[null,"TOTAL dépenses prévisionnelles",null,null,null,null,null,{"$f":"H48+H76+H109+H141+H174+H206+H238+H271","v":0},0,0,0,0,0,0,0,0,0,0,0,0,0,0,0,0,0,0,0,0,null,{"$f":"AD271+AD238+AD206+AD174+AD141+AD109+AD76+AD48","v":0}]
[]
[null,null,"Prise en compte des frais Chef de file",null,null,null,"Prise en compte des frais Partenaire 1"]
[null,null,"Les frais de personnel :","-",null,null,"Les frais de personnel :","-"]
[]
[null,null,"Les frais kilométriques :","-",null,null,"Les frais kilométriques :","-"]
[]
[]
[null,null,"Les repas :","-",null,null,"Les repas :","-"]
[]
[null,null,"Nuitées :","-",null,null,"Nuitées :","-"]
[]
[null,null,"frais de structure :","-",null,null,"frais de structure :","-"]
[null,null,"Prise en compte des frais Partenaire 2",null,null,null,"Prise en compte des frais Partenaire 3"]
[null,null,"Les frais de personnel :","-",null,null,"Les frais de personnel :","-"]
[]
[null,null,"Les frais kilométriques :","-",null,null,"Les frais kilométriques :","-"]
[]
[]
[null,null,"Les repas :","-",null,null,"Les repas :","-"]
[]
[null,null,"Nuitées :","-",null,null,"Nuitées :","-"]
[]
[null,null,"frais de structure :","-",null,null,"frais de structure :","-"]

{"sheet":"Ressources","index":2,"n_rows":72,"n_cols":22,"rows_kept":72,"cut":false,"hidden":false,"merged":[[39,12,43,12],[69,14,69,16],[18,14,18,21],[56,15,59,15],[56,21,59,21],[60,15,63,15],[60,21,63,21],[68,14,68,16],[50,14,50,16],[51,14,51,20],[52,15,55,15],[52,21,55,21],[34,21,38,21],[39,14,43,14],[39,21,43,21],[44,14,44,16],[45,14,45,20],[20,21,23,21],[24,14,28,14],[24,21,28,21],[29,14,33,14],[29,21,33,21],[19,14,19,20],[20,14,23,14],[34,14,38,14],[20,12,23,12],[24,12,28,12],[29,12,33,12],[34,12,38,12],[1,7,3,11],[4,7,4,11],[7,1,7,11],[18,5,18,11],[18,1,18,3],[44,5,44,7],[50,5,50,7],[68,5,68,7],[19,5,19,11],[45,5,45,11],[51,5,51,11],[29,5,33,5],[39,5,43,5],[52,6,55,6],[56,6,59,6],[60,6,63,6],[64,6,67,6],[34,5,38,5],[20,5,23,5],[24,5,28,5],[64,12,67,12],[64,15,67,15],[64,21,67,21],[46,21,49,21],[71,1,71,11],[69,5,69,7],[46,12,49,12],[56,12,59,12],[52,12,55,12],[60,12,63,12]]}
[]
[null,null,"Intitulé de l'opération",{"$f":"'Dépenses prévisionnelles'!D2:E2","v":0},null,null,null,"Annexe 1 : Plan de financement\nProgrammation FEDER Massif central 2014-2020\nConvention interrégionale du Massif central"]
[null,null,"Bénéficiaire",{"$f":"'Dépenses prévisionnelles'!D3:E3","v":0}]
[null,null,"N° administratif du dossier",{"$f":"'Dépenses prévisionnelles'!D4:E4","v":0}]
[null,null,"Dates de début et de fin de l'opération",{"$f":"'Dépenses prévisionnelles'!D5:E5","v":0},null,null,null," Cadre réglementaire : Programme Opérationnel Interrégionnal FEDER Massif central, Convention interrégionale du Massif central"]
[]
[]
[null,"Onglet 2 - Tableau des ressources prévisionnelles de l'opération collaborative"]
[]
[null,"A remplir exclusivement en cas d'opération collaborative"]
[null,"Le chef de file doit reporter dans cet onglet les ressources totales pour tout le partenariat (sur la base de l'onglet 1 \"dépenses prévisionnelles\" pour lui et ses partenaires)"]
[null,"Le total des dépenses est reporté automatiquement. Attention, ne pas oublier de reporter les recettes le cas échéant, pour tout le partenariat"]
[null,"Attention, si un des partenaires a son plan de financement en HT, le chef de file doit présenter le plan de financement global en HT."]
[]
[null,"Les co-financements sollicités couvrent-ils la même période d'exécution et la même assiette de dépenses éligibles ? "]
[]
[]
[null,"Catégories de dépenses","Montant","%",null,"Nature des financements","Nom du chef de file et partenaires","Nom du financeur","Précisions (date et références d'obtention de l'aide : délibération, arrêté, convention...)","Montant (euros)","Assiette retenue par le cofinanceur","%","% total",null,"Nature des financements","Nom du chef de file et partenaires","Nom du financeur","Précisions (date et références d'obtention de l'aide : délibération, arrêté, convention...)","Montant (euros)","Assiette retenue par le cofinanceur","%","% total"]
[null,"Informations reportées automatiquement à partir de l'onglet \"Dépenses prévisionnelles\"",null,null,null,"Informations à remplir par le porteur de projet",null,null,null,null,null,null,null,null,"Informations à remplir par l'instructeur"]
[null,{"$f":"'Dépenses prévisionnelles'!B17:AB17","v":"Dépenses directes de personnel "},{"$f":"ROUND('Dépenses prévisionnelles'!H48,0)","v":0},{"$f":"IF(C$70=0,\"-\",C20/(C$70))","v":"-"},null,"FINANCEMENTS PUBLICS",null,null,null,null,null,null,null,null,"FINANCEMENTS PUBLICS"]
[null,{"$f":"'Dépenses prévisionnelles'!B49:AB49","v":"Frais de mission du personnel - ventilation indicative - Attention certaines dépenses sont éligibles uniquement pour les associations"},{"$f":"ROUND('Dépenses prévisionnelles'!H76,0)","v":0},"-",null,"FEDER","Chef de file","POI Massif central",null,null,{"$f":"ROUND(C70,0)","v":0},{"$f":"IF(J$70=0,\"-\",J21/(J$70))","v":"-"},{"$f":"IF(J$70=0,\"-\",(J21+J22+J23+J24)/(J$70))","v":"-"},null,"FEDER","Chef de file","POI Massif central",null,null,{"$f":"ROUND(C70,0)","v":0},{"$f":"IF(S$70=0,\"-\",S21/(S$70))","v":"-"},{"$f":"IF(S$70=0,\"-\",(S21+S22+S23+S24)/(S$70))","v":"-"}]
[null,{"$f":"'Dépenses prévisionnelles'!B77:AB77","v":"Coûts indirects - pour tous les porteurs"},{"$f":"ROUND('Dépenses prévisionnelles'!H109,0)","v":0},"-",null,null,"Partenaire 1",null,null,null,null,"-",null,null,null,"Partenaire 1",null,null,null,null,"-"]
[null,{"$f":"'Dépenses prévisionnelles'!B110:AB110","v":"Prestations externes"},{"$f":"ROUND('Dépenses prévisionnelles'!H141,0)","v":0},"-",null,null,"Partenaire 2",null,null,null,null,"-",null,null,null,"Partenaire 2",null,null,null,null,"-"]
[null,{"$f":"'Dépenses prévisionnelles'!B142:AB142","v":"Investissements matériels et immatériels"},{"$f":"ROUND('Dépenses prévisionnelles'!H174,0)","v":0},"-",null,null,"Partenaire 3",null,null,null,null,"-",null,null,null,"Partenaire 3",null,null,null,null,"-"]
[null,{"$f":"'Dépenses prévisionnelles'!B175:AB175","v":"Acquisitions foncières et immobilières"},{"$f":"ROUND('Dépenses prévisionnelles'!H206,0)","v":0},"-",null,"Regions","Chef de file",null,null,null,null,"-",{"$f":"IF(J$70=0,\"-\",(J25+J26+J27+J28+J29)/(J$70))","v":"-"},null,"Regions","Chef de file",null,null,null,null,"-",{"$f":"IF(S$70=0,\"-\",(S25+S26+S27+S28+S29)/(S$70))","v":"-"}]
[null,{"$f":"'Dépenses prévisionnelles'!B207:AB207","v":"Apports en nature"},{"$f":"ROUND('Dépenses prévisionnelles'!H238,0)","v":0},"-",null,null,"Partenaire 1",null,null,null,null,"-",null,null,null,"Partenaire 1",null,null,null,null,"-"]
[null,{"$f":"'Dépenses prévisionnelles'!B239:AB239","v":"Autres dépenses (à spécifier)- ventilation indicative - Attention certaines dépenses sont éligibles uniquement pour les associations"},{"$f":"ROUND('Dépenses prévisionnelles'!H271,0)","v":0},"-",null,null,"Partenaire 2",null,null,null,null,"-",null,null,null,"Partenaire 2",null,null,null,null,"-"]
[null,"Total des dépenses ",{"$f":"ROUND(SUM(C20:C27),0)","v":0},{"$f":"IF(C28=0,0,C28/C28)","v":0},null,null,"Partenaire 3",null,null,null,null,"-",null,null,null,"Partenaire 3",null,null,null,null,"-"]
[null,"Recettes nettes générées par l'opération (*)",null,0,null,null,null,null,null,null,null,"-",null,null,null,null,null,null,null,null,"-"]
[null,"Total des recettes nettes",{"$f":"ROUND(C29,0)","v":0},{"$f":"IF(C30=0,0,C30/D28)","v":0},null,"ETAT","Chef de file",null,null,null,null,"-",{"$f":"IF(J$70=0,\"-\",(J30+J31+J32+J33+J34)/(J$70))","v":"-"},null,"ETAT","Chef de file",null,null,null,null,"-",{"$f":"IF(S$70=0,\"-\",(S30+S31+S32+S33+S34)/(S$70))","v":"-"}]
[null,null,null,null,null,null,"Partenaire 1",null,null,null,null,"-",null,null,null,"Partenaire 1",null,null,null,null,"-"]
[null,null,null,null,null,null,"Partenaire 2",null,null,null,null,{"$f":"IF(J$70=0,\"-\",J32/(J$70))","v":"-"},null,null,null,"Partenaire 2",null,null,null,null,{"$f":"IF(S$70=0,\"-\",S32/(S$70))","v":"-"}]
[null,null,null,null,null,null,"Partenaire 3",null,null,null,null,"-",null,null,null,"Partenaire 3",null,null,null,null,"-"]
[null,null,null,null,null,null,null,null,null,null,null,"-",null,null,null,null,null,null,null,null,"-"]
[null,null,null,null,null,"Départements","Chef de file",null,null,null,null,{"$f":"IF(J$70=0,\"-\",J35/(J$70))","v":"-"},{"$f":"IF(J$70=0,\"-\",(J35+J36+J37+J38+J39)/(J$70))","v":"-"},null,"Départements","Chef de file",null,null,null,null,{"$f":"IF(S$70=0,\"-\",S35/(S$70))","v":"-"},{"$f":"IF(S$70=0,\"-\",(S35+S36+S37+S38+S39)/(S$70))","v":"-"}]
[null,null,null,null,null,null,"Partenaire 1",null,null,null,null,"-",null,null,null,"Partenaire 1",null,null,null,null,"-"]
[null,null,null,null,null,null,"Partenaire 2",null,null,null,null,"-",null,null,null,"Partenaire 2",null,null,null,null,"-"]
[null,null,null,null,null,null,"Partenaire 3",null,null,null,null,"-",null,null,null,"Partenaire 3",null,null,null,null,"-"]
[null,null,null,null,null,null,null,null,null,null,null,"-",null,null,null,null,null,null,null,null,"-"]
[null,null,null,null,null,"Autres financeurs publics ou autofinancement public (à préciser)","Chef de file","Autofinancement public",null,null,null,"-",{"$f":"IF(J$70=0,\"-\",(J40+J41+J42+J43+J44)/(J$70))","v":"-"},null,"Autres financeurs publics ou autofinancement public (à préciser)","Chef de file","Autofinancement public",null,null,null,"-",{"$f":"IF(S$70=0,\"-\",(S40+S41+S42+S43+S44)/(S$70))","v":"-"}]
[null,null,null,null,null,null,"Partenaire 1","Autofinancement public",null,null,null,"-",null,null,null,"Partenaire 1",null,null,null,null,"-"]
[null,null,null,null,null,null,"Partenaire 2","Autofinancement public",null,null,null,"-",null,null,null,"Partenaire 2",null,null,null,null,"-"]
[null,null,null,null,null,null,"Partenaire 3","Autofinancement public",null,null,null,"-",null,null,null,"Partenaire 3",null,null,null,null,"-"]
[null,null,null,null,null,null,null,null,null,null,null,"-",null,null,null,null,null,null,null,null,"-"]
[null,null,null,null,null,"TOTAL FINANCEMENTS PUBLICS",null,null,null,{"$f":"SUM(J21:J44)","v":0},null,"-",{"$f":"IF(J$70=0,\"-\",J45/(J$70))","v":"-"},null,"TOTAL FINANCEMENTS PUBLICS",null,null,null,{"$f":"SUM(S21:S44)","v":0},null,"-",{"$f":"IF(S$70=0,\"-\",S45/(S$70))","v":"-"}]
[null,null,null,null,null,"FINANCEMENTS PRIVES",null,null,null,null,null,null,null,null,"FINANCEMENTS PRIVES"]
[null,null,null,null,null,"Financement privé (à préciser)","Chef de file",null,null,null,null,{"$f":"IF(J$70=0,\"-\",J47/(J$70))","v":"-"},{"$f":"IF(J$70=0,\"-\",(J47+J48+J49+J50)/(J$70))","v":"-"},null,"Financement privé (à préciser)","Chef de file",null,null,null,null,{"$f":"IF(S$70=0,\"-\",S47/(S$70))","v":"-"},{"$f":"IF(S$70=0,\"-\",(S47+S48+S49+S50)/(S$70))","v":"-"}]
[null,null,null,null,null,"Financement privé (à préciser)","Partenaire 1",null,null,null,null,{"$f":"IF(J$70=0,\"-\",J48/(J$70))","v":"-"},null,null,"Financement privé (à préciser)","Partenaire 1",null,null,null,null,{"$f":"IF(S$70=0,\"-\",S48/(S$70))","v":"-"}]
[null,null,null,null,null,"Financement privé (à préciser)","Partenaire 2",null,null,null,null,"-",null,null,"Financement privé (à préciser)","partenaire 2",null,null,null,null,"-"]
[null,null,null,null,null,"Financement privé (à préciser)","Partenaire 3",null,null,null,null,{"$f":"IF(J$70=0,\"-\",J50/(J$70))","v":"-"},null,null,"Financement privé (à préciser)","partenaire 3",null,null,null,null,{"$f":"IF(S$70=0,\"-\",S50/(S$70))","v":"-"}]
[null,null,null,null,null,"TOTAL FINANCEMENTS PRIVES",null,null,null,{"$f":"SUM(J47:J49)","v":0},null,{"$f":"IF(J$70=0,\"-\",J51/(J$70))","v":"-"},{"$f":"IF(J$70=0,\"-\",J51/(J$70))","v":"-"},null,"TOTAL FINANCEMENTS PRIVES",null,null,null,{"$f":"SUM(S47:S49)","v":0},null,{"$f":"IF(S$70=0,\"-\",S51/(S$70))","v":"-"},{"$f":"IF(S$70=0,\"-\",S51/(S$70))","v":"-"}]
[null,null,null,null,null,"AUTOFINANCEMENT",null,null,null,null,null,null,null,null,"AUTOFINANCEMENT"]
[null,null,null,null,null,"Ressources propres","Chef de file",null,null,null,null,{"$f":"IF(J$70=0,\"-\",J53/(J$70))","v":"-"},{"$f":"IF(J$70=0,\"-\",(J53+J54+J55+J56)/(J$70))","v":"-"},null,"Ressources propres","Chef de file",null,null,null,null,{"$f":"IF(S$70=0,\"-\",S53/(S$70))","v":"-"},{"$f":"IF(S$70=0,\"-\",(S53+S54+S55+S56)/(S$70))","v":"-"}]
[null,null,null,null,null,"Emprunts",null,null,null,null,null,"-",null,null,"Emprunts",null,null,null,null,null,"-"]
[null,null,null,null,null,"Apports en nature",null,null,null,null,null,"-",null,null,"Apports en nature",null,null,null,null,null,"-"]
[null,null,null,null,null,"Recettes",null,null,null,null,null,"-",null,null,"Recettes",null,null,null,null,null,"-"]
[null,null,null,null,null,"Ressources propres","Partenaire 1",null,null,null,null,"-",{"$f":"IF(J$70=0,\"-\",(J57+J58+J59+J60)/(J$70))","v":"-"},null,"Ressources propres","Partenaire 1",null,null,null,null,"-",{"$f":"IF(S$70=0,\"-\",(S57+S58+S59+S60)/(S$70))","v":"-"}]
[null,null,null,null,null,"Emprunts",null,null,null,null,null,"-",null,null,"Emprunts",null,null,null,null,null,"-"]
[null,null,null,null,null,"Apports en nature",null,null,null,null,null,"-",null,null,"Apports en nature",null,null,null,null,null,"-"]
[null,null,null,null,null,"Recettes",null,null,null,null,null,"-",null,null,"Recettes",null,null,null,null,null,"-"]
[null,null,null,null,null,"Ressources propres","Partenaire 2",null,null,null,null,"-",{"$f":"IF(J$70=0,\"-\",(J61+J62+J63+J64)/(J$70))","v":"-"},null,"Ressources propres","Partenaire 2",null,null,null,null,"-",{"$f":"IF(S$70=0,\"-\",(S61+S62+S63+S64)/(S$70))","v":"-"}]
[null,null,null,null,null,"Emprunts",null,null,null,null,null,"-",null,null,"Emprunts",null,null,null,null,null,"-"]
[null,null,null,null,null,"Apports en nature",null,null,null,null,null,"-",null,null,"Apports en nature",null,null,null,null,null,"-"]
[null,null,null,null,null,"Recettes",null,null,null,null,null,"-",null,null,"Recettes",null,null,null,null,null,"-"]
[null,null,null,null,null,"Ressources propres","Partenaire 3",null,null,null,null,"-",{"$f":"IF(J$70=0,\"-\",(J65+J66+J67+J68)/(J$70))","v":"-"},null,"Ressources propres","Partenaire 3",null,null,null,null,"-",{"$f":"IF(S$70=0,\"-\",(S65+S66+S67+S68)/(S$70))","v":"-"}]
[null,null,null,null,null,"Emprunts",null,null,null,null,null,"-",null,null,"Emprunts",null,null,null,null,null,"-"]
[null,null,null,null,null,"Apports en nature",null,null,null,null,null,"-",null,null,"Apports en nature",null,null,null,null,null,"-"]
[null,null,null,null,null,"Recettes",null,null,null,null,null,"-",null,null,"Recettes",null,null,null,null,null,"-"]
[null,null,null,null,null,"TOTAL AUTOFINANCEMENT",null,null,null,{"$f":"SUM(J53:J68)","v":0},null,"-",{"$f":"IF(J$70=0,\"-\",J69/(J$70))","v":"-"},null,"TOTAL AUTOFINANCEMENT",null,null,null,{"$f":"SUM(S53:S68)","v":0},null,"-",{"$f":"IF(S$70=0,\"-\",S69/(S$70))","v":"-"}]
[null,"Coût total éligible",{"$f":"ROUND(C28-C29,0)","v":0},{"$f":"IF(C$70=0,\"-\",C70/(C$70))","v":"-"},null,"Total des ressources",null,null,null,{"$f":"J45+J51+J69","v":0},null,"-",{"$f":"IF(J$70=0,\"-\",J70/(J$70))","v":"-"},null,"Total des ressources",null,null,null,{"$f":"S45+S51+S69","v":0},null,"-",{"$f":"IF(S$70=0,\"-\",S70/(S$70))","v":"-"}]
[null,null,null,null,null,null,null,null,null,{"$f":"J70-C70","v":0}]
[null,"(*) Le traitement des recettes nettes générées par l'opération varie selon le coût total éligible de l'opération ainsi que de la période durant laquelle elles sont générées.                                                                                                                                                                                                                              \nDans le cas où le projet devrait générer des recettes uniquement durant la période d'exécution de l'opération et que le coût total éligible dépasse 50 000€, alors les recettes prévisionnelles totales doivent être saisies dans cette case, sur la base de l'estimation des recettes réalisée dans l'annexe 5 - Méthode 2. \nDans le cas où le projet devrait générer des recettes au-delà de la période d'exécution de l'opération et si le coût total dépasse un million d'euros, l'assiette éligible doit être définie selon la méthode dite du \"déficit de financement\" (méthode 1 annexe 5). L'assiette éligible du projet est alors estimée dans l'annexe 5 et il n'est pas utile de renseigner la case \"recettes\" du tableau ci-dessus."]

{"sheet":"Frais de personnel ","index":3,"n_rows":125,"n_cols":18,"rows_kept":125,"cut":false,"hidden":false,"merged":[[1,3,1,5],[1,7,3,15],[2,3,2,5],[3,3,3,5],[4,3,4,5],[4,7,4,15],[5,6,5,15],[7,1,7,15],[10,1,10,15],[16,1,17,1],[16,2,17,2],[16,3,17,3],[16,4,17,4],[16,5,17,5],[16,6,17,6],[16,7,17,7],[16,8,17,8],[16,9,17,9],[16,10,17,10],[16,11,17,11],[12,1,13,7],[19,1,19,2],[19,4,19,5],[19,7,19,8],[52,12,53,12],[52,1,53,1],[52,2,53,2],[52,3,53,3],[52,4,53,4],[52,5,53,5],[52,6,53,6],[52,7,53,7],[52,8,53,8],[52,9,53,9],[52,10,53,10],[52,11,53,11],[55,1,55,2],[55,4,55,5],[55,7,55,8],[88,1,89,1],[88,2,89,2],[88,3,89,3],[88,4,89,4],[88,5,89,5],[88,6,89,6],[88,7,89,7],[122,1,122,15],[124,1,124,7],[124,8,124,9],[88,14,89,14],[88,15,89,15],[91,1,91,2],[91,4,91,5],[91,7,91,8],[91,10,91,12],[88,8,89,8],[88,9,89,9],[88,10,89,10],[88,11,89,11],[88,12,89,12],[88,13,89,13]]}
[]
[null,null,"Intitulé de l'opération",{"$f":"'Dépenses prévisionnelles'!D2:E2","v":0},null,null,null,"Annexe 1 : Plan de financement\nProgrammation FEDER Massif central 2014-2020\nConvention interrégionale du Massif central",null,null,null,null,null,null,null,null,null,"-"]
[null,null,"Bénéficiaire",{"$f":"'Dépenses prévisionnelles'!D3:E3","v":0},null,null,null,null,null,null,null,null,null,null,null,null,null,"Mensuelle"]
[null,null,"N° administratif du dossier",{"$f":"'Dépenses prévisionnelles'!D4:E4","v":0},null,null,null,null,null,null,null,null,null,null,null,null,null,"Annuelle"]
[null,null,"Dates de début et de fin de l'opération",{"$f":"'Dépenses prévisionnelles'!D5:E5","v":0},null,null,null,"Cadre règlementaire : Programme Opérationnel Interrégionnal FEDER Massif central 2014-2020, Convention interrégionale du Massif central"]
[]
[]
[null,"Cette annexe permet au porteur de projet d'estimer les dépenses de personnel liées à l'opération. Une fois rempli, ce tableau permet de renseigner la ligne \"dépenses de personnel\" dans les onglets \"dépenses prévisionnelles\" et \"ressources\".\nNe remplir que les zones colorés en vert clair."]
[]
[]
[null,"Onglet 3 - Tableau récapitulatif des dépenses directes de personnel prévisionnelles pour l'opération collaborative"]
[]
[null,"A remplir par le chef de file pour tout le partenariat"]
[]
[]
[null,"Salariés à temps plein sur l'opération"]
[null,"Intitulé du poste + nom du chef de file ou partenaires","Nom de la personne en poste le cas échéant","Base mensuelle ou annuelle","Salaire brut","Charges patronales","Salaire brut chargé","Emplois aidés : préciser le montant de l'aide","Taxe sur les salaires","Part du salaire à prendre en compte","Nombre de mois sur l'opération","Coût prévisionnel total par poste"]
[]
[null,null,null,null,"(1)","(2)","(3)","(4)","(5)","(6)","(7)","(10)"]
[null,null,null,"Sélectionner dans la liste déroulante","Référence : dernier coût annuel ou prévisionnelsi nouvelle embauche",null,"(1) + (2)","A remplir le cas échéant",null,"(3) - (4) - (5)","Référence : prévisionnel","(8) x (9)"]
[null,"Ex: chargé de mission Partenaire 1",null,"-",0,0,{"$f":"E21+F21","v":0},0,0,{"$f":"G21-H21-I21","v":0},null,{"$f":"IF(J21=0,0,ROUND(J21*K21,0))","v":0}]
[null,"Ex: Chargé de mission Partenaire 2",null,"-",0,0,0,0,0,0,null,{"$f":"IF(J22=0,0,ROUND(J22*K22,0))","v":0}]
[null,null,null,"-",0,0,0,0,0,0,null,0]
[null,null,null,"-",0,0,0,0,0,0,null,0]
[null,null,null,"-",0,0,0,0,0,0,null,0]
[null,null,null,"-",0,0,0,0,0,0,null,0]
[null,null,null,"-",0,0,0,0,0,0,null,0]
[null,null,null,"-",0,0,0,0,0,0,null,0]
[null,null,null,"-",0,0,0,0,0,0,null,0]
[null,null,null,"-",0,0,0,0,0,0,null,0]
[null,null,null,"-",0,0,0,0,0,0,null,0]
[null,null,null,"-",0,0,0,0,0,0,null,0]
[null,null,null,"-",0,0,0,0,0,0,null,0]
[null,null,null,"-",0,0,0,0,0,0,null,0]
[null,null,null,"-",0,0,0,0,0,0,null,0]
[null,null,null,"-",0,0,0,0,0,0,null,0]
[null,null,null,"-",0,0,0,0,0,0,null,0]
[null,null,null,"-",0,0,0,0,0,0,null,0]
[null,null,null,"-",0,0,0,0,0,0,null,0]
[null,null,null,"-",0,0,0,0,0,0,null,0]
[null,null,null,"-",0,0,0,0,0,0,null,0]
[null,null,null,"-",0,0,0,0,0,0,null,0]
[null,null,null,"-",0,0,0,0,0,0,null,0]
[null,null,null,"-",0,0,0,0,0,0,null,0]
[null,null,null,"-",0,0,0,0,0,0,null,0]
[null,null,null,"-",0,0,0,0,0,0,null,0]
[null,null,null,"-",0,0,0,0,0,0,null,0]
[null,null,null,"-",0,0,0,0,0,0,null,0]
[null,null,null,"-",0,0,0,0,0,0,null,0]
[null,null,null,"-",0,0,0,0,0,0,null,0]
[]
[null,"Salariés dont le temps de travail est affecté en partie à l'opération et dont le prorata est prédéfini dans le contrat de travail ou la lettre de mission"]
[null,"Intitulé du poste","Nom de la personne en poste le cas échéant","Base mensuelle ou annuelle","Salaire brut","Charges patronales","Salaire brut chargé","Emplois aidés : préciser le montant de l'aide","Taxe sur les salaires","Part du salaire à prendre en compte","Nombre de mois sur l'opération","% temps de travail prévu sur l'opération","Coût prévisionnel total par poste"]
[]
[null,null,null,null,"(1)","(2)","(3)","(4)","(5)","(6)","(7)","(8)","(9)"]
[null,null,null,"Sélectionner dans la liste déroulante","Référence : dernier coût annuel ou prévisionnelsi nouvelle embauche",null,"(1) + (2)","A remplir le cas échéant",null,"(3) - (4) - (5)","A remplir si base mensuelle uniquement","A remplir si base mensuelle ou annuelle","(6) x (7) x (8)"]
[null,null,null,"-",0,0,{"$f":"E57+F57","v":0},0,0,{"$f":"G57-H57-I57","v":0},null,null,{"$f":"IF(D57=Listes!$A$69,ROUND('Frais de personnel '!J57*'Frais de personnel '!K57*'Frais de personnel '!L57,0),ROUND('Frais de personnel '!J57*'Frais de personnel '!L57,0))","v":0}]
[null,null,null,"-",0,0,0,0,0,0,null,null,{"$f":"IF(D58=Listes!$A$69,ROUND('Frais de personnel '!J58*'Frais de personnel '!K58*'Frais de personnel '!L58,0),ROUND('Frais de personnel '!J58*'Frais de personnel '!L58,0))","v":0}]
[null,null,null,"-",0,0,0,0,0,0,null,null,{"$f":"IF(D59=Listes!$A$69,ROUND('Frais de personnel '!J59*'Frais de personnel '!K59*'Frais de personnel '!L59,0),ROUND('Frais de personnel '!J59*'Frais de personnel '!L59,0))","v":0}]
[null,null,null,"-",0,0,0,0,0,0,null,null,{"$f":"IF(D60=Listes!$A$69,ROUND('Frais de personnel '!J60*'Frais de personnel '!K60*'Frais de personnel '!L60,0),ROUND('Frais de personnel '!J60*'Frais de personnel '!L60,0))","v":0}]
[null,null,null,"-",0,0,0,0,0,0,null,null,{"$f":"IF(D61=Listes!$A$69,ROUND('Frais de personnel '!J61*'Frais de personnel '!K61*'Frais de personnel '!L61,0),ROUND('Frais de personnel '!J61*'Frais de personnel '!L61,0))","v":0}]
[null,null,null,"-",0,0,0,0,0,0,null,null,{"$f":"IF(D62=Listes!$A$69,ROUND('Frais de personnel '!J62*'Frais de personnel '!K62*'Frais de personnel '!L62,0),ROUND('Frais de personnel '!J62*'Frais de personnel '!L62,0))","v":0}]
[null,null,null,"-",0,0,0,0,0,0,null,null,{"$f":"IF(D63=Listes!$A$69,ROUND('Frais de personnel '!J63*'Frais de personnel '!K63*'Frais de personnel '!L63,0),ROUND('Frais de personnel '!J63*'Frais de personnel '!L63,0))","v":0}]
[null,null,null,"-",0,0,0,0,0,0,null,null,{"$f":"IF(D64=Listes!$A$69,ROUND('Frais de personnel '!J64*'Frais de personnel '!K64*'Frais de personnel '!L64,0),ROUND('Frais de personnel '!J64*'Frais de personnel '!L64,0))","v":0}]
[null,null,null,"-",0,0,0,0,0,0,null,null,{"$f":"IF(D65=Listes!$A$69,ROUND('Frais de personnel '!J65*'Frais de personnel '!K65*'Frais de personnel '!L65,0),ROUND('Frais de personnel '!J65*'Frais de personnel '!L65,0))","v":0}]
[null,null,null,"-",0,0,0,0,0,0,null,null,{"$f":"IF(D66=Listes!$A$69,ROUND('Frais de personnel '!J66*'Frais de personnel '!K66*'Frais de personnel '!L66,0),ROUND('Frais de personnel '!J66*'Frais de personnel '!L66,0))","v":0}]
[null,null,null,"-",0,0,0,0,0,0,null,null,{"$f":"IF(D67=Listes!$A$69,ROUND('Frais de personnel '!J67*'Frais de personnel '!K67*'Frais de personnel '!L67,0),ROUND('Frais de personnel '!J67*'Frais de personnel '!L67,0))","v":0}]
[null,null,null,"-",0,0,0,0,0,0,null,null,{"$f":"IF(D68=Listes!$A$69,ROUND('Frais de personnel '!J68*'Frais de personnel '!K68*'Frais de personnel '!L68,0),ROUND('Frais de personnel '!J68*'Frais de personnel '!L68,0))","v":0}]
[null,null,null,"-",0,0,0,0,0,0,null,null,{"$f":"IF(D69=Listes!$A$69,ROUND('Frais de personnel '!J69*'Frais de personnel '!K69*'Frais de personnel '!L69,0),ROUND('Frais de personnel '!J69*'Frais de personnel '!L69,0))","v":0}]
[null,null,null,"-",0,0,0,0,0,0,null,null,{"$f":"IF(D70=Listes!$A$69,ROUND('Frais de personnel '!J70*'Frais de personnel '!K70*'Frais de personnel '!L70,0),ROUND('Frais de personnel '!J70*'Frais de personnel '!L70,0))","v":0}]
[null,null,null,"-",0,0,0,0,0,0,null,null,{"$f":"IF(D71=Listes!$A$69,ROUND('Frais de personnel '!J71*'Frais de personnel '!K71*'Frais de personnel '!L71,0),ROUND('Frais de personnel '!J71*'Frais de personnel '!L71,0))","v":0}]
[null,null,null,"-",0,0,0,0,0,0,null,null,{"$f":"IF(D72=Listes!$A$69,ROUND('Frais de personnel '!J72*'Frais de personnel '!K72*'Frais de personnel '!L72,0),ROUND('Frais de personnel '!J72*'Frais de personnel '!L72,0))","v":0}]
[null,null,null,"-",0,0,0,0,0,0,null,null,{"$f":"IF(D73=Listes!$A$69,ROUND('Frais de personnel '!J73*'Frais de personnel '!K73*'Frais de personnel '!L73,0),ROUND('Frais de personnel '!J73*'Frais de personnel '!L73,0))","v":0}]
[null,null,null,"-",0,0,0,0,0,0,null,null,{"$f":"IF(D74=Listes!$A$69,ROUND('Frais de personnel '!J74*'Frais de personnel '!K74*'Frais de personnel '!L74,0),ROUND('Frais de personnel '!J74*'Frais de personnel '!L74,0))","v":0}]
[null,null,null,"-",0,0,0,0,0,0,null,null,{"$f":"IF(D75=Listes!$A$69,ROUND('Frais de personnel '!J75*'Frais de personnel '!K75*'Frais de personnel '!L75,0),ROUND('Frais de personnel '!J75*'Frais de personnel '!L75,0))","v":0}]
[null,null,null,"-",0,0,0,0,0,0,null,null,{"$f":"IF(D76=Listes!$A$69,ROUND('Frais de personnel '!J76*'Frais de personnel '!K76*'Frais de personnel '!L76,0),ROUND('Frais de personnel '!J76*'Frais de personnel '!L76,0))","v":0}]
[null,null,null,"-",0,0,0,0,0,0,null,null,{"$f":"IF(D77=Listes!$A$69,ROUND('Frais de personnel '!J77*'Frais de personnel '!K77*'Frais de personnel '!L77,0),ROUND('Frais de personnel '!J77*'Frais de personnel '!L77,0))","v":0}]
[null,null,null,"-",0,0,0,0,0,0,null,null,{"$f":"IF(D78=Listes!$A$69,ROUND('Frais de personnel '!J78*'Frais de personnel '!K78*'Frais de personnel '!L78,0),ROUND('Frais de personnel '!J78*'Frais de personnel '!L78,0))","v":0}]
[null,null,null,"-",0,0,0,0,0,0,null,null,{"$f":"IF(D79=Listes!$A$69,ROUND('Frais de personnel '!J79*'Frais de personnel '!K79*'Frais de personnel '!L79,0),ROUND('Frais de personnel '!J79*'Frais de personnel '!L79,0))","v":0}]
[null,null,null,"-",0,0,0,0,0,0,null,null,{"$f":"IF(D80=Listes!$A$69,ROUND('Frais de personnel '!J80*'Frais de personnel '!K80*'Frais de personnel '!L80,0),ROUND('Frais de personnel '!J80*'Frais de personnel '!L80,0))","v":0}]
[null,null,null,"-",0,0,0,0,0,0,null,null,{"$f":"IF(D81=Listes!$A$69,ROUND('Frais de personnel '!J81*'Frais de personnel '!K81*'Frais de personnel '!L81,0),ROUND('Frais de personnel '!J81*'Frais de personnel '!L81,0))","v":0}]
[null,null,null,"-",0,0,0,0,0,0,null,null,{"$f":"IF(D82=Listes!$A$69,ROUND('Frais de personnel '!J82*'Frais de personnel '!K82*'Frais de personnel '!L82,0),ROUND('Frais de personnel '!J82*'Frais de personnel '!L82,0))","v":0}]
[null,null,null,"-",0,0,0,0,0,0,null,null,{"$f":"IF(D83=Listes!$A$69,ROUND('Frais de personnel '!J83*'Frais de personnel '!K83*'Frais de personnel '!L83,0),ROUND('Frais de personnel '!J83*'Frais de personnel '!L83,0))","v":0}]
[null,null,null,"-",0,0,0,0,0,0,null,null,{"$f":"IF(D84=Listes!$A$69,ROUND('Frais de personnel '!J84*'Frais de personnel '!K84*'Frais de personnel '!L84,0),ROUND('Frais de personnel '!J84*'Frais de personnel '!L84,0))","v":0}]
[null,null,null,"-",0,0,0,0,0,0,null,null,{"$f":"IF(D85=Listes!$A$69,ROUND('Frais de personnel '!J85*'Frais de personnel '!K85*'Frais de personnel '!L85,0),ROUND('Frais de personnel '!J85*'Frais de personnel '!L85,0))","v":0}]
[null,null,null,"-",0,0,0,0,0,0,null,null,{"$f":"IF(D86=Listes!$A$69,ROUND('Frais de personnel '!J86*'Frais de personnel '!K86*'Frais de personnel '!L86,0),ROUND('Frais de personnel '!J86*'Frais de personnel '!L86,0))","v":0}]
[]
[null,"Salariés dont le temps de travail est affecté en partie à l'opération et dont le prorata est calculé au réel sur la base de fiches de temps"]
[null,"Intitulé du poste","Nom de la personne en poste le cas échéant","Base annuelle","Salaire brut","Charges patronales","Salaire brut chargé","Emplois aidés : préciser le montant de l'aide","Taxe sur les salaires","Part du salaire à prendre en compte","Nombre d'heures payées annuelles","Nombre d'heures de congés payés par an","Nombre d'heures de RTT par an","Taux horaire applicable","Nombre d'heures prévues sur l'opération","Coût prévisionnel total par poste"]
[]
[null,null,null,null,"(1)","(2)","(3)","(4)","(5)","(6)","(7)","(8)","(9)","(10)","(11)","(12)"]
[null,null,null,"Base annuelle obligatoire","Référence : dernier coût annuel ou prévisionnel si nouvelle embauche",null,"(1) + (2)","A remplir le cas échéant",null,"(3) - (4) - (5)","Références : contrats de travail, bulletins de paie et conventions collectives Voir note de bas de page (**)",null,null,"(6) / [(7)-(8)-(9)]","Référence : prévisionnel annuel","(10) x (11)"]
[null,null,null,"-",null,0,{"$f":"E93+F93","v":0},0,0,{"$f":"G93-H93-I93","v":0},null,null,null,{"$f":"IF(J93=0,0,J93/(K93-L93-M93))","v":0},null,{"$f":"IF(N93=0,0,ROUND(N93*O93,0))","v":0}]
[null,null,null,"-",0,0,0,0,0,0,null,null,null,0,null,{"$f":"IF(N94=0,0,ROUND(N94*O94,0))","v":0}]
[null,null,null,"-",0,0,0,0,0,0,null,null,null,0,null,0]
[null,null,null,"-",0,0,0,0,0,0,null,null,null,0,null,0]
[null,null,null,"-",0,0,0,0,0,0,null,null,null,0,null,0]
[null,null,null,"-",0,0,0,0,0,0,null,null,null,0,null,0]
[null,null,null,"-",0,0,0,0,0,0,null,null,null,0,null,0]
[null,null,null,"-",0,0,0,0,0,0,null,null,null,0,null,0]
[null,null,null,"-",0,0,0,0,0,0,null,null,null,0,null,0]
[null,null,null,"-",0,0,0,0,0,0,null,null,null,0,null,0]
[null,null,null,"-",0,0,0,0,0,0,null,null,null,0,null,0]
[null,null,null,"-",0,0,0,0,0,0,null,null,null,0,null,0]
[null,null,null,"-",0,0,0,0,0,0,null,null,null,0,null,0]
[null,null,null,"-",0,0,0,0,0,0,null,null,null,0,null,0]
[null,null,null,"-",0,0,0,0,0,0,null,null,null,0,null,0]
[null,null,null,"-",0,0,0,0,0,0,null,null,null,0,null,0]
[null,null,null,"-",0,0,0,0,0,0,null,null,null,0,null,0]
[null,null,null,"-",0,0,0,0,0,0,null,null,null,0,null,0]
[null,null,null,"-",0,0,0,0,0,0,null,null,null,0,null,0]
[null,null,null,"-",0,0,0,0,0,0,null,null,null,0,null,0]
[null,null,null,"-",0,0,0,0,0,0,null,null,null,0,null,0]
[null,null,null,"-",0,0,0,0,0,0,null,null,null,0,null,0]
[null,null,null,"-",0,0,0,0,0,0,null,null,null,0,null,0]
[null,null,null,"-",0,0,0,0,0,0,null,null,null,0,null,0]
[null,null,null,"-",0,0,0,0,0,0,null,null,null,0,null,0]
[null,null,null,"-",0,0,0,0,0,0,null,null,null,0,null,0]
[null,null,null,"-",0,0,0,0,0,0,null,null,null,0,null,0]
[null,null,null,"-",0,0,0,0,0,0,null,null,null,0,null,0]
[null,null,null,"-",0,0,0,0,0,0,null,null,null,0,null,0]
[null,null,null,"-",0,0,0,0,0,0,null,null,null,0,null,0]
[null,"(**) Le taux horaire applicable est calculé sur la base des heures de travail effectif. Celles-sont sont estiméesà partir du calcul suivant : heures annuelles payées par l'employeur - congés payés annuels - RTT annuels"]
[]
[null,"Montant prévisionnel des frais directs de personnel (reporté dans l'onglet \"dépenses prévisionnelles\") =",null,null,null,null,null,null,{"$f":"ROUND(SUM(L21:L50)+SUM(M57:M86)+SUM(P93:P122),0)","v":0}]

{"sheet":"Ventilation par années","index":4,"n_rows":23,"n_cols":15,"rows_kept":23,"cut":false,"hidden":false,"merged":[[65,1,66,5],[56,1,57,3],[9,1,10,7],[13,1,13,2],[13,3,13,10],[5,7,5,10],[1,11,3,14],[5,11,5,14],[7,1,7,14],[1,2,1,3],[2,2,2,3],[3,2,3,3],[4,2,4,3],[1,4,1,5],[2,4,2,5],[3,4,3,5],[4,4,4,5],[1,7,3,10]]}
[]
[null,null,"Intitulé de l'opération",null,{"$f":"'Dépenses prévisionnelles'!D2","v":0},null,null,"Annexe 1 : Plan de financement\nProgrammation FEDER Massif central 2014-2020\nConvention interrégionale du Massif central"]
[null,null,"Porteur de projet",null,{"$f":"'Dépenses prévisionnelles'!D3","v":0}]
[null,null,"N° administratif du dossier",null,{"$f":"'Dépenses prévisionnelles'!D4","v":0}]
[null,null,"Dates de début et de fin de l'opération",null,{"$f":"'Dépenses prévisionnelles'!D5","v":0}]
[null,null,null,null,null,null,null," Cadre réglementaire : Programme Opérationnel Interrégionnal FEDER Massif central\nConvention interrégionale du Massif central"]
[]
[null,"Onglet 4 - Ventilation des dépenses prévisionnelles par année"]
[]
[null,"A remplir par le chef de file pour tout le partenariat"]
[]
[]
[null,"Catégories de dépenses","Montant sur la durée de l'opération","Année\n20__","%","Année\n20__","%","Année\n20__","%","Année\n20__","%","Année\n20__","%","Année\n20__","%"]
[null,"Informations reportées automatiquement à partir de l'onglet \"Dépenses prévisionnelles\"",null," Champs des colonnes en vert à remplir par le porteur de projet"]
[null,{"$f":"'Dépenses prévisionnelles'!B17:AB17","v":"Dépenses directes de personnel "},{"$f":"ROUND('Dépenses prévisionnelles'!H48,0)","v":0},null,{"$f":"IF($C15=0,\"-\",D15/(D$23))","v":"-"},null,{"$f":"IF($C15=0,\"-\",F15/(F$23))","v":"-"},null,{"$f":"IF($C15=0,\"-\",H15/(H$23))","v":"-"},null,{"$f":"IF($C15=0,\"-\",J15/(J$23))","v":"-"},null,{"$f":"IF($C15=0,\"-\",L15/(L$23))","v":"-"},null,{"$f":"IF($C15=0,\"-\",N15/(N$23))","v":"-"}]
[null,{"$f":"'Dépenses prévisionnelles'!B49:AB49","v":"Frais de mission du personnel - ventilation indicative - Attention certaines dépenses sont éligibles uniquement pour les associations"},{"$f":"ROUND('Dépenses prévisionnelles'!H76,0)","v":0},null,{"$f":"IF($C16=0,\"-\",D16/(D$23))","v":"-"},null,"-",null,{"$f":"IF($C16=0,\"-\",H16/(H$23))","v":"-"},null,{"$f":"IF($C16=0,\"-\",J16/(J$23))","v":"-"},null,{"$f":"IF($C16=0,\"-\",L16/(L$23))","v":"-"},null,{"$f":"IF($C16=0,\"-\",N16/(N$23))","v":"-"}]
[null,{"$f":"'Dépenses prévisionnelles'!B77:AB77","v":"Coûts indirects - pour tous les porteurs"},{"$f":"ROUND('Dépenses prévisionnelles'!H109,0)","v":0},null,"-",null,"-",null,{"$f":"IF($C17=0,\"-\",H17/(H$23))","v":"-"},null,{"$f":"IF($C17=0,\"-\",J17/(J$23))","v":"-"},null,"-",null,"-"]
[null,{"$f":"'Dépenses prévisionnelles'!B110:AB110","v":"Prestations externes"},{"$f":"ROUND('Dépenses prévisionnelles'!H1415,0)","v":0},null,"-",null,"-",null,{"$f":"IF($C18=0,\"-\",H18/(H$23))","v":"-"},null,{"$f":"IF($C18=0,\"-\",J18/(J$23))","v":"-"},null,"-",null,"-"]
[null,{"$f":"'Dépenses prévisionnelles'!B142:AB142","v":"Investissements matériels et immatériels"},{"$f":"ROUND('Dépenses prévisionnelles'!H174,0)","v":0},null,"-",null,"-",null,{"$f":"IF($C19=0,\"-\",H19/(H$23))","v":"-"},null,{"$f":"IF($C19=0,\"-\",J19/(J$23))","v":"-"},null,"-",null,"-"]
[null,{"$f":"'Dépenses prévisionnelles'!B175:AB175","v":"Acquisitions foncières et immobilières"},{"$f":"ROUND('Dépenses prévisionnelles'!H206,0)","v":0},null,"-",null,"-",null,{"$f":"IF($C20=0,\"-\",H20/(H$23))","v":"-"},null,{"$f":"IF($C20=0,\"-\",J20/(J$23))","v":"-"},null,"-",null,"-"]
[null,{"$f":"'Dépenses prévisionnelles'!B207:AB207","v":"Apports en nature"},{"$f":"ROUND('Dépenses prévisionnelles'!H238,0)","v":0},null,"-",null,"-",null,{"$f":"IF($C21=0,\"-\",H21/(H$23))","v":"-"},null,{"$f":"IF($C21=0,\"-\",J21/(J$23))","v":"-"},null,"-",null,"-"]
[null,{"$f":"'Dépenses prévisionnelles'!B239:AB239","v":"Autres dépenses (à spécifier)- ventilation indicative - Attention certaines dépenses sont éligibles uniquement pour les associations"},{"$f":"ROUND('Dépenses prévisionnelles'!H272,0)","v":0},null,"-",null,"-",null,{"$f":"IF($C22=0,\"-\",H22/(H$23))","v":"-"},null,{"$f":"IF($C22=0,\"-\",J22/(J$23))","v":"-"},null,"-",null,"-"]
[null,"Total des dépenses ",{"$f":"ROUND(SUM(C15:C22),0)","v":0},{"$f":"ROUND(SUM(D15:D22),0)","v":0},"-",{"$f":"ROUND(SUM(F15:F22),0)","v":0},"-",{"$f":"ROUND(SUM(H15:H22),0)","v":0},{"$f":"IF($C23=0,\"-\",H23/(H$23))","v":"-"},{"$f":"ROUND(SUM(J15:J22),0)","v":0},{"$f":"IF($C23=0,\"-\",J23/(J$23))","v":"-"},{"$f":"ROUND(SUM(L15:L22),0)","v":0},"-",{"$f":"ROUND(SUM(N15:N22),0)","v":0},"-"]

{"sheet":"Listes","index":5,"n_rows":75,"n_cols":1,"rows_kept":75,"cut":false,"hidden":true,"merged":[]}
["-"]
["Oui"]
["Non"]
[]
["-"]
["CIMAC"]
["Hors CIMAC"]
[]
["-"]
["Hors Taxes (HT)"]
["TVA partielle"]
["Toutes Taxes Comprises (TTC)"]
[]
["-"]
["Eligible"]
["Inéligible"]
[]
["-"]
["Hors aides d'état"]
["Recherche Développement et Innovation (RDI)"]
["Aide à Finalité Régionale (AFR)"]
["PME"]
["Actions collectives"]
["Environnement"]
["Service d'Intérêt Economique Général (SIEG)"]
["De minimis"]
["Autre"]
[]
["-"]
["Favorable"]
["Favorable sous réserve"]
["Ajournement"]
["Défavorable"]
[]
["-"]
["Aquitaine-Limousin-Poitou-Charentes"]
["Auvergne-Rhône-Alpes"]
["Bourgogne-Franche-Comté"]
["Languedoc-Roussillon-Midi-Pyrénées"]
[]
[]
[]
["-"]
["03 Allier"]
["07 Ardèche"]
["11 Aude"]
["12 Aveyron"]
["15 Cantal"]
["19 Corrèze"]
["21 Côte d’Or"]
["23 Creuse"]
["30 Gard"]
["34 Hérault"]
["42 Loire"]
["43 Haute-Loire"]
["46 Lot"]
["48 Lozère"]
["58 Nièvre"]
["63 Puy-de-Dôme"]
["69 Rhône"]
["71 Saône-et-Loire"]
["81 Tarn"]
["82 Tarn-et-Garonne"]
["87 Haute-Vienne"]
["89 Yonne"]
[]
[]
["-"]
["Mensuelle"]
["Annuelle"]
[]
["-"]
["Temps plein"]
["Prorata prédéfini"]
["Prorata calculé au réel"]

{"sheet":"liste déroulante","index":6,"n_rows":28,"n_cols":1,"rows_kept":28,"cut":false,"hidden":true,"merged":[]}
["-"]
["Temps complet 100%"]
["Temps partiel pré-affecté en pourcentage par lettre de mission ou contrat de travail "]
["Temps partiel justifié par fiches de temps"]
[]
[]
["-"]
["Barème kilométriques"]
["Calcul et clé de répartition définis par le bénéficiaire (véhicule de service ou de fonction)"]
[]
[]
["-"]
["Indemnité forfaitaire définie par le bénéficiaire pour ses salariés"]
["Frais réels"]
[]
[]
["-"]
["Forfait 15,25€"]
[]
[]
[]
["-"]
["Taux forfaitaire maximal de 15% des frais de personnel directs éligibles (article 68 du règlement UE 1303-2013)"]
["Frais réels (location d’un bien immobilier consacré à la réalisation de l’opération)"]
[]
[]
["Autofinancement public"]
["Préciser le financeur public "]

{"sheet":"Echéance versement FEDER","index":7,"n_rows":20,"n_cols":8,"rows_kept":20,"cut":false,"hidden":false,"merged":[[19,1,20,5],[4,2,4,3],[4,4,4,5],[5,7,5,10],[6,1,6,14],[8,1,9,5],[18,1,18,5],[5,11,5,14],[1,2,1,3],[1,4,1,5],[1,7,3,10],[1,11,3,14],[2,2,2,3],[2,4,2,5],[3,2,3,3],[3,4,3,5]]}
[]
[null,null,"Intitulé de l'opération",null,{"$f":"'Dépenses prévisionnelles'!D2","v":0},null,null,"Annexe 1 : Plan de financement\nProgrammation FEDER Massif central 2014-2020\nConvention interrégionale du Massif central"]
[null,null,"Porteur de projet",null,{"$f":"'Dépenses prévisionnelles'!D3","v":0}]
[null,null,"N° administratif du dossier",null,{"$f":"'Dépenses prévisionnelles'!D4","v":0}]
[null,null,"Dates de début et de fin de l'opération",null,{"$f":"'Dépenses prévisionnelles'!D5","v":0}]
[null,null,null,null,null,null,null," Cadre réglementaire : Programme Opérationnel Interrégionnal FEDER Massif central\nConvention interrégionale du Massif central"]
[null,"Onglet 5 - Échéance de versement du FEDER"]
[]
[null,"A remplir par le chef de file"]
[]
[]
[null,null,"FEDER (total par partenaire)","Mois*+ Année n","Mois+Année n+1","Mois+Année n+2"]
[null,"Echéancier"]
[null,"Chef de file",{"$f":"D14+E14+F14","v":0}]
[null,"Partenaire n°1",{"$f":"D15+E15+F15","v":0}]
[null,"Partenaire n°2",{"$f":"D16+E16+F16","v":0}]
[null,"Partenaire n°3",{"$f":"D17+E17+F17","v":0}]
[]
[null,"*Définir un mois prévisionnel de versement de la subvention FEDER aux partenaires"]
[null,"Attention, le bénéficiaire chef de file doit faire la demande de paiement grâce aux remontées de dépenses de ses partenaires, prévoir un délai raisonnable pour le traitement de la demande afin de définir le mois de versement."]

{"sheet":"FN1 ","index":8,"n_rows":39,"n_cols":12,"rows_kept":39,"cut":false,"hidden":true,"merged":[[37,0,37,4],[38,1,38,4],[27,0,27,4],[28,1,28,4],[29,1,29,4],[30,1,30,4],[32,0,34,4],[36,0,36,4],[25,1,25,4],[0,1,1,4],[3,3,3,4],[8,0,8,4],[9,1,9,4],[10,1,10,4],[11,1,11,4],[13,0,13,4],[14,0,20,4],[22,0,22,4],[23,1,23,4],[24,1,24,4]]}
["« Fiche navette » n°1","Avis technique d'opportunité pour le financement d'une opération présentée au titre du programme FEDER Massif central 2014-2020"]
[null,null,null,null,null,null,null,null,null,null,null,"Oui"]
[null,null,null,null,null,null,null,null,null,null,null,"Non"]
[null,null,"Date",null,null,null,null,null,null,null,null,"-"]
[]
["L'avis technique d'opportunité est à remplir par la région référente sur le projet. "]
["Toutefois les autres régions sont invitées à produire leurs avis si elles sont concernées par le projet."]
[null,null,null,null,null,null,null,null,null,null,null,"Biodiversité- Milieux ouverts herbacés"]
["Informations générales sur l’opération",null,null,null,null,null,null,null,null,null,null,"Biodiversité- Tourbières"]
["Numéro d’opération",{"$f":"'Dépenses prévisionnelles'!D4","v":0},null,null,null,null,null,null,null,null,null,"Biodiversité- Forêts anciennes"]
["Maître d’ouvrage",{"$f":"'Dépenses prévisionnelles'!D3","v":0},null,null,null,null,null,null,null,null,null,"Environnement- Valorisation des services environnementaux"]
["Intitulé de l’opération",{"$f":"'Dépenses prévisionnelles'!D2","v":0},null,null,null,null,null,null,null,null,null,"Tourisme- Pôles de pleine nature"]
[]
["Description de l'opération",null,null,null,null,null,null,null,null,null,null,"Tourisme- Itinérance"]
[null,null,null,null,null,null,null,null,null,null,null,"Bois construction- Positionnement sur les marchés"]
[null,null,null,null,null,null,null,null,null,null,null,"Bois construction- Qualification des produits"]
[null,null,null,null,null,null,null,null,null,null,null,"Bois construction- Caractérisation des bois"]
[null,null,null,null,null,null,null,null,null,null,null,"Bois construction- Equipement de formation"]
[null,null,null,null,null,null,null,null,null,null,null,"Bois- Prospection de nouveaux marchés"]
[null,null,null,null,null,null,null,null,null,null,null,"Innovation territoriale- Politiques d'accueil"]
[null,null,null,null,null,null,null,null,null,null,null,"Innovation territoriale- Expérimentations"]
[null,null,null,null,null,null,null,null,null,null,null,"Innovation territoriale- Services innovants à la population"]
["Service “expert”",null,null,null,null,null,null,null,null,null,null,"Innovation territoriale- Amélioration des connaissances"]
["Structure",null,null,null,null,null,null,null,null,null,null,"-"]
["Service"]
["Nom du rédacteur",null,null,null,null,null,null,null,null,null,null,"Avis favorable"]
[null,null,null,null,null,null,null,null,null,null,null,"Avis défavorable"]
["Eligibilité",null,null,null,null,null,null,null,null,null,null,"Avis favorable sous réserve"]
["Eligible au PO?",null,null,null,null,null,null,null,null,null,null,"-"]
["Axe"]
["Activité économique?"]
[]
["Au sens communautaire, une activité est dite économique si elle entraîne la fourniture d’un bien et/ou d’un service, et ce, peu importe la nature du maître d’ouvrage (public/privé, entreprise/collectivité/association/etc). Toute aide à une activité économique doit se conformer aux conditions du régime d’aide correspondant."]
[]
[]
[]
["Opportunité technique de l'opération pour un financement FEDER"]
[]
["Conclusion :","-"]

{"sheet":"recap chef de file","index":9,"n_rows":53,"n_cols":18,"rows_kept":53,"cut":false,"hidden":false,"merged":[[52,1,52,10],[15,12,15,17],[49,5,49,6],[49,12,49,13],[50,5,50,6],[50,12,50,13],[16,5,16,10],[16,12,16,17],[18,5,23,5],[18,12,23,12],[24,5,25,5],[24,12,25,12],[44,5,44,10],[44,12,44,17],[26,5,31,5],[26,12,31,12],[43,5,43,6],[43,12,43,13],[1,6,3,10],[4,6,4,10],[7,1,7,10],[15,1,15,3],[15,5,15,10],[9,1,9,6],[32,5,38,5],[32,12,38,12],[39,5,39,6],[39,12,39,13],[40,5,40,10],[40,12,40,17]]}
[]
[null,null,"Intitulé de l'opération",{"$f":"'Dépenses prévisionnelles'!D2","v":0},null,null,"Annexe 1 : Plan de financement\nProgrammation FEDER Massif central 2014-2020\nConvention interrégionale du Massif central"]
[null,null,"Bénéficiaire",{"$f":"'Dépenses prévisionnelles'!D3","v":0}]
[null,null,"N° administratif du dossier",{"$f":"'Dépenses prévisionnelles'!D4","v":0}]
[null,null,"Dates de début et de fin de l'opération",{"$f":"'Dépenses prévisionnelles'!D5","v":0},null,null," Cadre réglementaire : Programme Opérationnel Interrégionnal FEDER Massif central, Convention interrégionale du Massif central"]
[]
[]
[null,"Onglet 2 - Tableau des ressources prévisionnelles de l'opération"]
[]
[null,"RECAPITULATIF DU CHEF DE FILE"]
[]
[null,"Les co-financements sollicités couvrent-ils la même période d'exécution et la même assiette de dépenses éligibles ? "]
[]
[]
[null,"Catégories de dépenses","Montant","%",null,"Nature des financements","Nom du financeur","Précisions (date et références d'obtention de l'aide : délibération, arrêté, convention...)","Montant (euros)","Assiette retenue par le cofinanceur","%",null,"Nature des financements","Nom du financeur","Précisions (date et références d'obtention de l'aide : délibération, arrêté, convention...)","Montant (euros)","Assiette retenue par le cofinanceur","%"]
[null,"Informations à remplir par le porteur de projet",null,null,null,"Informations à remplir par le porteur de projet",null,null,null,null,null,null,"A renseigner par le service instructeur"]
[null,{"$f":"'[1]Dépenses prévisionnelles'!B15:AB15","v":"Dépenses directes de personnel "},null,{"$f":"IF(C$51=0,\"-\",C17/(C$51))","v":"-"},null,"FINANCEMENTS PUBLICS",null,null,null,null,null,null,"FINANCEMENTS PUBLICS"]
[null,{"$f":"'[1]Dépenses prévisionnelles'!B47:AB47","v":"Frais de mission du personnel"},null,"-",null,"FEDER","POI Massif central",null,null,{"$f":"C51","v":0},{"$f":"IF(I$51=0,\"-\",I18/(I$51))","v":"-"},null,"FEDER","POI Massif central",null,null,{"$f":"C51","v":0},{"$f":"IF(P$51=0,\"-\",P18/(P$51))","v":"-"}]
[null,{"$f":"'[1]Dépenses prévisionnelles'!B81:AB81","v":"Coûts indirects"},null,"-",null,"REGIONS",null,null,null,null,"-",null,"REGIONS",null,null,null,null,"-"]
[null,{"$f":"'[1]Dépenses prévisionnelles'!B114:AB114","v":"Prestations externes"},null,"-",null,null,null,null,null,null,"-",null,null,null,null,null,null,"-"]
[null,{"$f":"'[1]Dépenses prévisionnelles'!B146:AB146","v":"Investissements matériels et immatériels"},null,"-",null,null,null,null,null,null,"-",null,null,null,null,null,null,"-"]
[null,{"$f":"'[1]Dépenses prévisionnelles'!B179:AB179","v":"Acquisitions foncières et immobilières"},null,"-",null,null,null,null,null,null,"-",null,null,null,null,null,null,"-"]
[null,{"$f":"'[1]Dépenses prévisionnelles'!B211:AB211","v":"Apports en nature"},null,"-",null,null,null,null,null,null,"-",null,null,null,null,null,null,"-"]
[null,{"$f":"'[1]Dépenses prévisionnelles'!B243:AB243","v":"Autres dépenses (à spécifier)"},null,"-",null,null,null,null,null,null,"-",null,null,null,null,null,null,"-"]
[null,"Total des dépenses ",{"$f":"ROUND(SUM(C17:C24),0)","v":0},{"$f":"IF(C25=0,0,C25/C25)","v":0},null,"ETAT",null,null,null,null,"-",null,"ETAT",null,null,null,null,"-"]
[null,"Recettes nettes générées par l'opération (*)",null,0,null,null,null,null,null,null,"-",null,null,null,null,null,null,"-"]
[null,"Total des recettes nettes",{"$f":"C26","v":0},{"$f":"IF(C27=0,0,C27/D25)","v":0},null,"DEPARTEMENTS",null,null,null,null,"-",null,"DEPARTEMENTS",null,null,null,null,"-"]
[null,null,null,null,null,null,null,null,null,null,"-",null,null,null,null,null,null,"-"]
[null,null,null,null,null,null,null,null,null,null,"-",null,null,null,null,null,null,"-"]
[null,null,null,null,null,null,null,null,null,null,"-",null,null,null,null,null,null,"-"]
[null,null,null,null,null,null,null,null,null,null,"-",null,null,null,null,null,null,"-"]
[null,null,null,null,null,null,null,null,null,null,"-",null,null,null,null,null,null,"-"]
[null,null,null,null,null,"Autres financeurs publics (à préciser)",null,null,null,null,"-",null,"Autres financeurs publics (à préciser)",null,null,null,null,"-"]
[null,null,null,null,null,null,null,null,null,null,"-",null,null,null,null,null,null,"-"]
[null,null,null,null,null,null,null,null,null,null,"-",null,null,null,null,null,null,"-"]
[null,null,null,null,null,null,null,null,null,null,"-",null,null,null,null,null,null,"-"]
[null,null,null,null,null,null,null,null,null,null,"-",null,null,null,null,null,null,"-"]
[null,null,null,null,null,null,null,null,null,null,"-",null,null,null,null,null,null,"-"]
[null,null,null,null,null,null,null,null,null,null,"-",null,null,null,null,null,null,"-"]
[null,null,null,null,null,"TOTAL FINANCEMENTS PUBLICS",null,null,{"$f":"SUM(I18:I39)","v":0},null,"-",null,"TOTAL FINANCEMENTS PUBLICS",null,null,{"$f":"SUM(P18:P39)","v":0},null,"-"]
[null,null,null,null,null,"FINANCEMENTS PRIVES",null,null,null,null,null,null,"FINANCEMENTS PRIVES"]
[null,null,null,null,null,"Financement privé (à préciser)",null,null,null,null,{"$f":"IF(I$51=0,\"-\",I42/(I$51))","v":"-"},null,"Financement privé (à préciser)",null,null,null,null,{"$f":"IF(P$51=0,\"-\",P42/(P$51))","v":"-"}]
[null,null,null,null,null,"Financement privé (à préciser)",null,null,null,null,{"$f":"IF(I$51=0,\"-\",I43/(I$51))","v":"-"},null,"Financement privé (à préciser)",null,null,null,null,{"$f":"IF(P$51=0,\"-\",P43/(P$51))","v":"-"}]
[null,null,null,null,null,"TOTAL FINANCEMENTS PRIVES",null,null,{"$f":"SUM(I42:I43)","v":0},null,{"$f":"IF(I$51=0,\"-\",I44/(I$51))","v":"-"},null,"TOTAL FINANCEMENTS PRIVES",null,null,{"$f":"SUM(P42:P43)","v":0},null,{"$f":"IF(P$51=0,\"-\",P44/(P$51))","v":"-"}]
[null,null,null,null,null,"AUTOFINANCEMENT",null,null,null,null,null,null,"AUTOFINANCEMENT"]
[null,null,null,null,null,"Ressources propres",null,null,null,null,{"$f":"IF(I$51=0,\"-\",I46/(I$51))","v":"-"},null,"Ressources propres",null,null,null,null,{"$f":"IF(P$51=0,\"-\",P46/(P$51))","v":"-"}]
[null,null,null,null,null,"Emprunts",null,null,null,null,"-",null,"Emprunts",null,null,null,null,"-"]
[null,null,null,null,null,"Apports en nature",null,null,null,null,"-",null,"Apports en nature",null,null,null,null,"-"]
[null,null,null,null,null,"Recettes",null,null,null,null,"-",null,"Recettes",null,null,null,null,"-"]
[null,null,null,null,null,"TOTAL AUTOFINANCEMENT",null,null,{"$f":"SUM(I46:I49)","v":0},null,"-",null,"TOTAL AUTOFINANCEMENT",null,null,{"$f":"SUM(P46:P49)","v":0},null,"-"]
[null,"Coût total éligible",{"$f":"ROUND(C25-C26,0)","v":0},{"$f":"IF(C$51=0,\"-\",C51/(C$51))","v":"-"},null,"Total des ressources",null,null,{"$f":"I40+I44+I50","v":0},null,"-",null,"Total des ressources",null,null,{"$f":"P50+P44+P40","v":0},null,"-"]
[null,null,null,null,null,null,null,null,{"$f":"I51-C51","v":0},null,null,null,null,null,null,{"$f":"P51-C51","v":0}]
[null,"(*) Le traitement des recettes nettes générées par l'opération varie selon le coût total éligible de l'opération ainsi que de la période durant laquelle elles sont générées.                                                                                                                                                                                                                              \nDans le cas où le projet devrait générer des recettes uniquement durant la période d'exécution de l'opération et que le coût total éligible dépasse 50 000€, alors les recettes prévisionnelles totales doivent être saisies dans cette case, sur la base de l'estimation des recettes réalisée dans l'annexe 5 - Méthode 2. \nDans le cas où le projet devrait générer des recettes au-delà de la période d'exécution de l'opération et si le coût total dépasse un million d'euros, l'assiette éligible doit être définie selon la méthode dite du \"déficit de financement\" (méthode 1 annexe 5). L'assiette éligible du projet est alors estimée dans l'annexe 5 et il n'est pas utile de renseigner la case \"recettes\" du tableau ci-dessus."]

{"sheet":"Fiche Navette 2","index":10,"n_rows":68,"n_cols":12,"rows_kept":68,"cut":false,"hidden":true,"merged":[[11,1,17,5],[25,1,25,5],[0,2,1,5],[3,4,3,5],[5,1,5,5],[6,2,6,5],[7,2,7,5],[8,2,8,5],[19,1,19,5],[20,2,20,5],[21,2,21,5],[22,2,22,5],[24,1,24,5],[10,1,10,5],[35,2,35,5],[37,1,37,5],[67,1,67,2],[26,2,26,5],[29,3,29,5],[31,2,31,5],[32,2,32,5],[33,2,33,5],[34,3,34,5]]}
[null,"« Fiche navette » n°2","Financement d’une opération présentée au titre des programmes Massif central 2014-2020",null,null,null,null,null,null,null,null,"-"]
[null,null,null,null,null,null,null,null,null,null,null,"Oui"]
[null,null,null,null,null,null,null,null,"Légende :",null,null,"Non"]
[null,null,null,"Date",null,null,null,null,"Détail des dépenses","Champs remplis par le GIP Massif central"]
[null,"Attention reproduire autant de fiche navette 2 que de partenaires",null,null,null,null,null,null,"Eligible / Inéligible","Champs à remplir par le cofinanceur partenaire",null,"-"]
[null,"Informations générales sur l’opération",null,null,null,null,null,null,null,null,null,"CIMAC"]
[null,"Numéro d’opération",{"$f":"'Dépenses prévisionnelles'!D4","v":0},null,null,null,null,null,null,null,null,"Hors CIMAC"]
[null,"Maître d’ouvrage",{"$f":"'Dépenses prévisionnelles'!$D$3","v":0}]
[null,"Intitulé de l’opération",{"$f":"'Dépenses prévisionnelles'!$D$2","v":0},null,null,null,null,null,null,null,null,"-"]
[]
[null,"Description de l'opération"]
[]
[]
[]
[]
[]
[]
[]
[null,null,null,null,null,null,null,null,null,null,null,"Hors Taxes (HT)"]
[null,"Service “expert”",null,null,null,null,null,null,null,null,null,"TVA partielle"]
[null,"Structure",null,null,null,null,null,null,null,null,null,"Toutes Taxes Comprises (TTC)"]
[null,"Service"]
[null,"Nom du rédacteur",null,null,null,null,null,null,null,null,null,"-"]
[null,null,null,null,null,null,null,null,null,null,null,"Eligible"]
[null,"Avis du service sur l’opération",null,null,null,null,null,null,null,null,null,"Inéligible"]
[]
[null,"Conclusion :","-",null,null,null,null,null,null,null,null,"-"]
[null,null,null,null,null,null,null,null,null,null,null,"Hors aides d'état"]
[null,"Financement de l’opération",null,null,null,null,null,null,null,null,null,"Recherche Développement et Innovation (RDI)"]
[null,"Financement envisagé :","-","Si \"non\", ne pas remplir la suite du formulaire",null,null,null,null,null,null,null,"Aide à Finalité Régionale (AFR)"]
[null,"Si oui, ",null,null,null,null,null,null,null,null,null,"PME"]
[null,"Délibération acquise :","-",null,null,null,null,null,null,null,null,"Actions collectives"]
[null,"Si non, date de passage en CP :",null,null,null,null,null,null,null,null,null,"Environnement"]
[null,"Montant de subvention :",null,null,null,null,null,null,null,null,null,"Service d'Intérêt Economique Général (SIEG)"]
[null,"Assiette éligible (préciser HT/TTC) :",{"$f":"F68","v":0},"Hors Taxes (HT)",null,null,null,null,null,null,null,"De minimis"]
[null,"Régime d’aide d'état (le cas échéant) :","-",null,null,null,null,null,null,null,null,"Autre"]
[]
[null,"Détails des postes de dépenses éligibles/inéligibles au financement",null,null,null,null,null,null,null,null,null,"-"]
[null,"Poste de dépenses","Détail des dépenses","Montant présenté","Eligible / Inéligible","Montant éligible",null,null,null,null,null,"Favorable"]
[null,{"$f":"'Dépenses prévisionnelles'!$B$17:$AB$17","v":"Dépenses directes de personnel "},null,{"$f":"'Dépenses prévisionnelles'!H48","v":0},null,null,null,null,null,null,null,"Favorable sous réserve"]
[]
[null,{"$f":"'Dépenses prévisionnelles'!$B$49:$AB$49","v":"Frais de mission du personnel - ventilation indicative - Attention certaines dépenses sont éligibles uniquement pour les associations"},{"$f":"'Dépenses prévisionnelles'!C50","v":"Déplacements transports en commun - uniquement pour les assocations"},{"$f":"'Dépenses prévisionnelles'!H50","v":0},null,null,null,null,null,null,null,"63 Puy-de-Dôme"]
[null,null,{"$f":"'Dépenses prévisionnelles'!C51","v":"Déplacements véhicules personnels ou de service - uniqument pour les associations"},{"$f":"'Dépenses prévisionnelles'!H51","v":0},null,null,null,null,null,null,null,"69 Rhône"]
[null,null,{"$f":"'Dépenses prévisionnelles'!#REF!","v":{"$error":"#REF!"}},{"$f":"'Dépenses prévisionnelles'!#REF!","v":{"$error":"#REF!"}},null,null,null,null,null,null,null,"71 Saône-et-Loire"]
[null,null,{"$f":"'Dépenses prévisionnelles'!#REF!","v":{"$error":"#REF!"}},{"$f":"'Dépenses prévisionnelles'!#REF!","v":{"$error":"#REF!"}},null,null,null,null,null,null,null,"81 Tarn"]
[null,null,{"$f":"'Dépenses prévisionnelles'!C52","v":"Frais d'essence pour la location voiture spécifique à l'action (remboursement au barème national) : uniquement pour associations"},{"$f":"'Dépenses prévisionnelles'!H52","v":0},null,null,null,null,null,null,null,"82 Tarn-et-Garonne"]
[null,null,{"$f":"'Dépenses prévisionnelles'!C53","v":"Repas - Forfait 15,25"},{"$f":"'Dépenses prévisionnelles'!H53","v":0}]
[null,null,{"$f":"'Dépenses prévisionnelles'!C54","v":"Nuitées - Plafond 60€ par nuitée"},{"$f":"'Dépenses prévisionnelles'!H54","v":0}]
[null,{"$f":"'Dépenses prévisionnelles'!$B$77:$AB$77","v":"Coûts indirects - pour tous les porteurs"},{"$f":"'Dépenses prévisionnelles'!$C$78","v":"Taux forfaitaire (associations exclusivement - hors fonds Etat)"},{"$f":"'Dépenses prévisionnelles'!$H78","v":0},null,null,null,null,null,null,null,"87 Haute-Vienne"]
[null,{"$f":"'Dépenses prévisionnelles'!$B$110:$AB$110","v":"Prestations externes"},{"$f":"'Dépenses prévisionnelles'!C111","v":0},{"$f":"'Dépenses prévisionnelles'!H111","v":0},null,null,null,null,null,null,null,"89 Yonne"]
[null,null,{"$f":"'Dépenses prévisionnelles'!C112","v":0},{"$f":"'Dépenses prévisionnelles'!H112","v":0}]
[null,null,{"$f":"'Dépenses prévisionnelles'!C113","v":0},{"$f":"'Dépenses prévisionnelles'!H113","v":0}]
[null,null,{"$f":"'Dépenses prévisionnelles'!C114","v":0},{"$f":"'Dépenses prévisionnelles'!H114","v":0},null,null,null,null,null,null,null,"-"]
[null,null,{"$f":"'Dépenses prévisionnelles'!C115","v":0},{"$f":"'Dépenses prévisionnelles'!H115","v":0}]
[null,null,{"$f":"'Dépenses prévisionnelles'!C116","v":0},{"$f":"'Dépenses prévisionnelles'!H116","v":0}]
[null,{"$f":"'Dépenses prévisionnelles'!B142:AB142","v":"Investissements matériels et immatériels"},{"$f":"'Dépenses prévisionnelles'!C143","v":0},{"$f":"'Dépenses prévisionnelles'!H143","v":0},null,null,null,null,null,null,null,"Mensuelle"]
[null,null,{"$f":"'Dépenses prévisionnelles'!C144","v":0},{"$f":"'Dépenses prévisionnelles'!H144","v":0}]
[null,null,{"$f":"'Dépenses prévisionnelles'!C145","v":0},{"$f":"'Dépenses prévisionnelles'!H145","v":0}]
[null,null,{"$f":"'Dépenses prévisionnelles'!C146","v":0},{"$f":"'Dépenses prévisionnelles'!H146","v":0}]
[null,{"$f":"'Dépenses prévisionnelles'!B175:AB175","v":"Acquisitions foncières et immobilières"},{"$f":"'Dépenses prévisionnelles'!C176","v":0},{"$f":"'Dépenses prévisionnelles'!H176","v":0}]
[null,null,{"$f":"'Dépenses prévisionnelles'!C177","v":0},{"$f":"'Dépenses prévisionnelles'!H177","v":0},null,null,null,null,null,null,null,"-"]
[null,{"$f":"'Dépenses prévisionnelles'!B207:AB207","v":"Apports en nature"},{"$f":"'Dépenses prévisionnelles'!C208","v":"Bénévolat, mise à disposition gracieuse de personnel, prêt de salle, etc"},{"$f":"'Dépenses prévisionnelles'!H238","v":0},null,null,null,null,null,null,null,"Temps plein"]
[null,null,{"$f":"'Dépenses prévisionnelles'!C209","v":"Bénévolat, mise à disposition gracieuse de personnel, prêt de salle, etc"},{"$f":"'Dépenses prévisionnelles'!H209","v":0},null,null,null,null,null,null,null,"Prorata prédéfini"]
[null,{"$f":"'Dépenses prévisionnelles'!B239:AB239","v":"Autres dépenses (à spécifier)- ventilation indicative - Attention certaines dépenses sont éligibles uniquement pour les associations"},{"$f":"'Dépenses prévisionnelles'!C240","v":"Frais préparatoires"},{"$f":"'Dépenses prévisionnelles'!H271","v":0},null,null,null,null,null,null,null,"Prorata calculé au réel"]
[null,null,{"$f":"'Dépenses prévisionnelles'!C242","v":0},{"$f":"'Dépenses prévisionnelles'!H242","v":0}]
[null,null,{"$f":"'Dépenses prévisionnelles'!C243","v":0},{"$f":"'Dépenses prévisionnelles'!H243","v":0}]
[null,null,{"$f":"'Dépenses prévisionnelles'!C244","v":0},{"$f":"'Dépenses prévisionnelles'!H244","v":0}]
[null,"TOTAUX",null,{"$f":"SUM(D40:D67)","v":{"$error":"#REF!"}},null,{"$f":"SUM(F40:F67)","v":0}]

{"sheet":"recap partenaire 1","index":11,"n_rows":53,"n_cols":18,"rows_kept":53,"cut":false,"hidden":false,"merged":[[24,5,25,5],[24,12,25,12],[1,6,3,10],[4,6,4,10],[7,1,7,10],[9,1,9,6],[15,1,15,3],[15,5,15,10],[15,12,15,17],[16,5,16,10],[16,12,16,17],[18,5,23,5],[18,12,23,12],[26,5,31,5],[26,12,31,12],[32,5,38,5],[32,12,38,12],[39,5,39,6],[39,12,39,13],[40,5,40,10],[40,12,40,17],[43,5,43,6],[43,12,43,13],[44,5,44,10],[44,12,44,17],[49,5,49,6],[49,12,49,13],[50,5,50,6],[50,12,50,13],[52,1,52,10]]}
[]
[null,null,"Intitulé de l'opération",{"$f":"'Dépenses prévisionnelles'!D2","v":0},null,null,"Annexe 1 : Plan de financement\nProgrammation FEDER Massif central 2014-2020\nConvention interrégionale du Massif central"]
[null,null,"Bénéficiaire",{"$f":"'Dépenses prévisionnelles'!D3","v":0}]
[null,null,"N° administratif du dossier",{"$f":"'Dépenses prévisionnelles'!D4","v":0}]
[null,null,"Dates de début et de fin de l'opération",{"$f":"'Dépenses prévisionnelles'!D5","v":0},null,null," Cadre réglementaire : Programme Opérationnel Interrégionnal FEDER Massif central, Convention interrégionale du Massif central"]
[]
[]
[null,"Onglet 2 - Tableau des ressources prévisionnelles de l'opération"]
[]
[null,"RECAPITULATIF DU PARTENAIRE 1"]
[]
[null,"Les co-financements sollicités couvrent-ils la même période d'exécution et la même assiette de dépenses éligibles ? "]
[]
[]
[null,"Catégories de dépenses","Montant","%",null,"Nature des financements","Nom du financeur","Précisions (date et références d'obtention de l'aide : délibération, arrêté, convention...)","Montant (euros)","Assiette retenue par le cofinanceur","%",null,"Nature des financements","Nom du financeur","Précisions (date et références d'obtention de l'aide : délibération, arrêté, convention...)","Montant (euros)","Assiette retenue par le cofinanceur","%"]
[null,"Informations à remplir par le porteur de projet",null,null,null,"Informations à remplir par le porteur de projet",null,null,null,null,null,null,"A renseigner par le service instructeur"]
[null,{"$f":"'[1]Dépenses prévisionnelles'!B15:AB15","v":"Dépenses directes de personnel "},null,{"$f":"IF(C$51=0,\"-\",C17/(C$51))","v":"-"},null,"FINANCEMENTS PUBLICS",null,null,null,null,null,null,"FINANCEMENTS PUBLICS"]
[null,{"$f":"'[1]Dépenses prévisionnelles'!B47:AB47","v":"Frais de mission du personnel"},null,"-",null,"FEDER","POI Massif central",null,null,{"$f":"C51","v":0},{"$f":"IF(I$51=0,\"-\",I18/(I$51))","v":"-"},null,"FEDER","POI Massif central",null,null,{"$f":"J51","v":0},{"$f":"IF(P$51=0,\"-\",P18/(P$51))","v":"-"}]
[null,{"$f":"'[1]Dépenses prévisionnelles'!B81:AB81","v":"Coûts indirects"},null,"-",null,"REGIONS",null,null,null,null,"-",null,"REGIONS",null,null,null,null,"-"]
[null,{"$f":"'[1]Dépenses prévisionnelles'!B114:AB114","v":"Prestations externes"},null,"-",null,null,null,null,null,null,"-",null,null,null,null,null,null,"-"]
[null,{"$f":"'[1]Dépenses prévisionnelles'!B146:AB146","v":"Investissements matériels et immatériels"},null,"-",null,null,null,null,null,null,"-",null,null,null,null,null,null,"-"]
[null,{"$f":"'[1]Dépenses prévisionnelles'!B179:AB179","v":"Acquisitions foncières et immobilières"},null,"-",null,null,null,null,null,null,"-",null,null,null,null,null,null,"-"]
[null,{"$f":"'[1]Dépenses prévisionnelles'!B211:AB211","v":"Apports en nature"},null,"-",null,null,null,null,null,null,"-",null,null,null,null,null,null,"-"]
[null,{"$f":"'[1]Dépenses prévisionnelles'!B243:AB243","v":"Autres dépenses (à spécifier)"},null,"-",null,null,null,null,null,null,"-",null,null,null,null,null,null,"-"]
[null,"Total des dépenses ",{"$f":"ROUND(SUM(C17:C24),0)","v":0},{"$f":"IF(C25=0,0,C25/C25)","v":0},null,"ETAT",null,null,null,null,"-",null,"ETAT",null,null,null,null,"-"]
[null,"Recettes nettes générées par l'opération (*)",null,0,null,null,null,null,null,null,"-",null,null,null,null,null,null,"-"]
[null,"Total des recettes nettes",{"$f":"C26","v":0},{"$f":"IF(C27=0,0,C27/D25)","v":0},null,"DEPARTEMENTS",null,null,null,null,"-",null,"DEPARTEMENTS",null,null,null,null,"-"]
[null,null,null,null,null,null,null,null,null,null,"-",null,null,null,null,null,null,"-"]
[null,null,null,null,null,null,null,null,null,null,"-",null,null,null,null,null,null,"-"]
[null,null,null,null,null,null,null,null,null,null,"-",null,null,null,null,null,null,"-"]
[null,null,null,null,null,null,null,null,null,null,"-",null,null,null,null,null,null,"-"]
[null,null,null,null,null,null,null,null,null,null,"-",null,null,null,null,null,null,"-"]
[null,null,null,null,null,"Autres financeurs publics (à préciser)",null,null,null,null,"-",null,"Autres financeurs publics (à préciser)",null,null,null,null,"-"]
[null,null,null,null,null,null,null,null,null,null,"-",null,null,null,null,null,null,"-"]
[null,null,null,null,null,null,null,null,null,null,"-",null,null,null,null,null,null,"-"]
[null,null,null,null,null,null,null,null,null,null,"-",null,null,null,null,null,null,"-"]
[null,null,null,null,null,null,null,null,null,null,"-",null,null,null,null,null,null,"-"]
[null,null,null,null,null,null,null,null,null,null,"-",null,null,null,null,null,null,"-"]
[null,null,null,null,null,null,null,null,null,null,"-",null,null,null,null,null,null,"-"]
[null,null,null,null,null,"TOTAL FINANCEMENTS PUBLICS",null,null,{"$f":"SUM(I18:I39)","v":0},null,"-",null,"TOTAL FINANCEMENTS PUBLICS",null,null,{"$f":"SUM(P18:P39)","v":0},null,"-"]
[null,null,null,null,null,"FINANCEMENTS PRIVES",null,null,null,null,null,null,"FINANCEMENTS PRIVES"]
[null,null,null,null,null,"Financement privé (à préciser)",null,null,null,null,{"$f":"IF(I$51=0,\"-\",I42/(I$51))","v":"-"},null,"Financement privé (à préciser)",null,null,null,null,{"$f":"IF(P$51=0,\"-\",P42/(P$51))","v":"-"}]
[null,null,null,null,null,"Financement privé (à préciser)",null,null,null,null,{"$f":"IF(I$51=0,\"-\",I43/(I$51))","v":"-"},null,"Financement privé (à préciser)",null,null,null,null,{"$f":"IF(P$51=0,\"-\",P43/(P$51))","v":"-"}]
[null,null,null,null,null,"TOTAL FINANCEMENTS PRIVES",null,null,{"$f":"SUM(I42:I43)","v":0},null,{"$f":"IF(I$51=0,\"-\",I44/(I$51))","v":"-"},null,"TOTAL FINANCEMENTS PRIVES",null,null,{"$f":"SUM(P42:P43)","v":0},null,{"$f":"IF(P$51=0,\"-\",P44/(P$51))","v":"-"}]
[null,null,null,null,null,"AUTOFINANCEMENT",null,null,null,null,null,null,"AUTOFINANCEMENT"]
[null,null,null,null,null,"Ressources propres",null,null,null,null,{"$f":"IF(I$51=0,\"-\",I46/(I$51))","v":"-"},null,"Ressources propres",null,null,null,null,{"$f":"IF(P$51=0,\"-\",P46/(P$51))","v":"-"}]
[null,null,null,null,null,"Emprunts",null,null,null,null,"-",null,"Emprunts",null,null,null,null,{"$f":"IF(P$51=0,\"-\",P47/(P$51))","v":"-"}]
[null,null,null,null,null,"Apports en nature",null,null,null,null,"-",null,"Apports en nature",null,null,null,null,{"$f":"IF(P$51=0,\"-\",P48/(P$51))","v":"-"}]
[null,null,null,null,null,"Recettes",null,null,null,null,"-",null,"Recettes",null,null,null,null,{"$f":"IF(P$51=0,\"-\",P49/(P$51))","v":"-"}]
[null,null,null,null,null,"TOTAL AUTOFINANCEMENT",null,null,{"$f":"SUM(I46:I49)","v":0},null,"-",null,"TOTAL AUTOFINANCEMENT",null,null,{"$f":"SUM(P46:P49)","v":0},null,{"$f":"IF(P$51=0,\"-\",P50/(P$51))","v":"-"}]
[null,"Coût total éligible",{"$f":"ROUND(C25-C26,0)","v":0},{"$f":"IF(C$51=0,\"-\",C51/(C$51))","v":"-"},null,"Total des ressources",null,null,{"$f":"I40+I44+I50","v":0},null,"-",null,"Total des ressources",null,null,{"$f":"P50+P44+P40","v":0},null,1]
[null,null,null,null,null,null,null,null,{"$f":"I51-C51","v":0},null,null,null,null,null,null,{"$f":"P51-C51","v":0}]
[null,"(*) Le traitement des recettes nettes générées par l'opération varie selon le coût total éligible de l'opération ainsi que de la période durant laquelle elles sont générées.                                                                                                                                                                                                                              \nDans le cas où le projet devrait générer des recettes uniquement durant la période d'exécution de l'opération et que le coût total éligible dépasse 50 000€, alors les recettes prévisionnelles totales doivent être saisies dans cette case, sur la base de l'estimation des recettes réalisée dans l'annexe 5 - Méthode 2. \nDans le cas où le projet devrait générer des recettes au-delà de la période d'exécution de l'opération et si le coût total dépasse un million d'euros, l'assiette éligible doit être définie selon la méthode dite du \"déficit de financement\" (méthode 1 annexe 5). L'assiette éligible du projet est alors estimée dans l'annexe 5 et il n'est pas utile de renseigner la case \"recettes\" du tableau ci-dessus."]

{"sheet":"recap partenaire 2","index":12,"n_rows":53,"n_cols":18,"rows_kept":53,"cut":false,"hidden":false,"merged":[[24,5,25,5],[24,12,25,12],[1,6,3,10],[4,6,4,10],[7,1,7,10],[9,1,9,6],[15,1,15,3],[15,5,15,10],[15,12,15,17],[16,5,16,10],[16,12,16,17],[18,5,23,5],[18,12,23,12],[26,5,31,5],[26,12,31,12],[32,5,38,5],[32,12,38,12],[39,5,39,6],[39,12,39,13],[40,5,40,10],[40,12,40,17],[43,5,43,6],[43,12,43,13],[44,5,44,10],[44,12,44,17],[49,5,49,6],[49,12,49,13],[50,5,50,6],[50,12,50,13],[52,1,52,10]]}
[]
[null,null,"Intitulé de l'opération",{"$f":"'Dépenses prévisionnelles'!D2","v":0},null,null,"Annexe 1 : Plan de financement\nProgrammation FEDER Massif central 2014-2020\nConvention interrégionale du Massif central"]
[null,null,"Bénéficiaire",{"$f":"'Dépenses prévisionnelles'!D3","v":0}]
[null,null,"N° administratif du dossier",{"$f":"'Dépenses prévisionnelles'!D4","v":0}]
[null,null,"Dates de début et de fin de l'opération",{"$f":"'Dépenses prévisionnelles'!D5","v":0},null,null," Cadre réglementaire : Programme Opérationnel Interrégionnal FEDER Massif central, Convention interrégionale du Massif central"]
[]
[]
[null,"Onglet 2 - Tableau des ressources prévisionnelles de l'opération"]
[]
[null,"RECAPITULATIF DU PARTENAIRE 2"]
[]
[null,"Les co-financements sollicités couvrent-ils la même période d'exécution et la même assiette de dépenses éligibles ? "]
[]
[]
[null,"Catégories de dépenses","Montant","%",null,"Nature des financements","Nom du financeur","Précisions (date et références d'obtention de l'aide : délibération, arrêté, convention...)","Montant (euros)","Assiette retenue par le cofinanceur","%",null,"Nature des financements","Nom du financeur","Précisions (date et références d'obtention de l'aide : délibération, arrêté, convention...)","Montant (euros)","Assiette retenue par le cofinanceur","%"]
[null,"Informations à remplir par le porteur de projet",null,null,null,"Informations à remplir par le porteur de projet",null,null,null,null,null,null,"A renseigner par le service instructeur"]
[null,{"$f":"'[1]Dépenses prévisionnelles'!B15:AB15","v":"Dépenses directes de personnel "},null,{"$f":"IF(C$51=0,\"-\",C17/(C$51))","v":"-"},null,"FINANCEMENTS PUBLICS",null,null,null,null,null,null,"FINANCEMENTS PUBLICS"]
[null,{"$f":"'[1]Dépenses prévisionnelles'!B47:AB47","v":"Frais de mission du personnel"},null,"-",null,"FEDER","POI Massif central",null,null,{"$f":"C51","v":0},{"$f":"IF(I$51=0,\"-\",I18/(I$51))","v":"-"},null,"FEDER","POI Massif central",null,null,{"$f":"J51","v":0},{"$f":"IF(P$51=0,\"-\",P18/(P$51))","v":"-"}]
[null,{"$f":"'[1]Dépenses prévisionnelles'!B81:AB81","v":"Coûts indirects"},null,"-",null,"REGIONS",null,null,null,null,"-",null,"REGIONS",null,null,null,null,"-"]
[null,{"$f":"'[1]Dépenses prévisionnelles'!B114:AB114","v":"Prestations externes"},null,"-",null,null,null,null,null,null,"-",null,null,null,null,null,null,"-"]
[null,{"$f":"'[1]Dépenses prévisionnelles'!B146:AB146","v":"Investissements matériels et immatériels"},null,"-",null,null,null,null,null,null,"-",null,null,null,null,null,null,"-"]
[null,{"$f":"'[1]Dépenses prévisionnelles'!B179:AB179","v":"Acquisitions foncières et immobilières"},null,"-",null,null,null,null,null,null,"-",null,null,null,null,null,null,"-"]
[null,{"$f":"'[1]Dépenses prévisionnelles'!B211:AB211","v":"Apports en nature"},null,"-",null,null,null,null,null,null,"-",null,null,null,null,null,null,"-"]
[null,{"$f":"'[1]Dépenses prévisionnelles'!B243:AB243","v":"Autres dépenses (à spécifier)"},null,"-",null,null,null,null,null,null,"-",null,null,null,null,null,null,"-"]
[null,"Total des dépenses ",{"$f":"ROUND(SUM(C17:C24),0)","v":0},{"$f":"IF(C25=0,0,C25/C25)","v":0},null,"ETAT",null,null,null,null,"-",null,"ETAT",null,null,null,null,"-"]
[null,"Recettes nettes générées par l'opération (*)",null,0,null,null,null,null,null,null,"-",null,null,null,null,null,null,"-"]
[null,"Total des recettes nettes",{"$f":"C26","v":0},{"$f":"IF(C27=0,0,C27/D25)","v":0},null,"DEPARTEMENTS",null,null,null,null,"-",null,"DEPARTEMENTS",null,null,null,null,"-"]
[null,null,null,null,null,null,null,null,null,null,"-",null,null,null,null,null,null,"-"]
[null,null,null,null,null,null,null,null,null,null,"-",null,null,null,null,null,null,"-"]
[null,null,null,null,null,null,null,null,null,null,"-",null,null,null,null,null,null,"-"]
[null,null,null,null,null,null,null,null,null,null,"-",null,null,null,null,null,null,"-"]
[null,null,null,null,null,null,null,null,null,null,"-",null,null,null,null,null,null,"-"]
[null,null,null,null,null,"Autres financeurs publics (à préciser)",null,null,null,null,"-",null,"Autres financeurs publics (à préciser)",null,null,null,null,"-"]
[null,null,null,null,null,null,null,null,null,null,"-",null,null,null,null,null,null,"-"]
[null,null,null,null,null,null,null,null,null,null,"-",null,null,null,null,null,null,"-"]
[null,null,null,null,null,null,null,null,null,null,"-",null,null,null,null,null,null,"-"]
[null,null,null,null,null,null,null,null,null,null,"-",null,null,null,null,null,null,"-"]
[null,null,null,null,null,null,null,null,null,null,"-",null,null,null,null,null,null,"-"]
[null,null,null,null,null,null,null,null,null,null,"-",null,null,null,null,null,null,"-"]
[null,null,null,null,null,"TOTAL FINANCEMENTS PUBLICS",null,null,{"$f":"SUM(I18:I39)","v":0},null,"-",null,"TOTAL FINANCEMENTS PUBLICS",null,null,{"$f":"SUM(P18:P39)","v":0},null,"-"]
[null,null,null,null,null,"FINANCEMENTS PRIVES",null,null,null,null,null,null,"FINANCEMENTS PRIVES"]
[null,null,null,null,null,"Financement privé (à préciser)",null,null,null,null,{"$f":"IF(I$51=0,\"-\",I42/(I$51))","v":"-"},null,"Financement privé (à préciser)",null,null,null,null,{"$f":"IF(P$51=0,\"-\",P42/(P$51))","v":"-"}]
[null,null,null,null,null,"Financement privé (à préciser)",null,null,null,null,{"$f":"IF(I$51=0,\"-\",I43/(I$51))","v":"-"},null,"Financement privé (à préciser)",null,null,null,null,{"$f":"IF(P$51=0,\"-\",P43/(P$51))","v":"-"}]
[null,null,null,null,null,"TOTAL FINANCEMENTS PRIVES",null,null,{"$f":"SUM(I42:I43)","v":0},null,{"$f":"IF(I$51=0,\"-\",I44/(I$51))","v":"-"},null,"TOTAL FINANCEMENTS PRIVES",null,null,{"$f":"SUM(P42:P43)","v":0},null,{"$f":"IF(P$51=0,\"-\",P44/(P$51))","v":"-"}]
[null,null,null,null,null,"AUTOFINANCEMENT",null,null,null,null,null,null,"AUTOFINANCEMENT"]
[null,null,null,null,null,"Ressources propres",null,null,null,null,{"$f":"IF(I$51=0,\"-\",I46/(I$51))","v":"-"},null,"Ressources propres",null,null,null,null,{"$f":"IF(P$51=0,\"-\",P46/(P$51))","v":"-"}]
[null,null,null,null,null,"Emprunts",null,null,null,null,"-",null,"Emprunts",null,null,null,null,{"$f":"IF(P$51=0,\"-\",P47/(P$51))","v":"-"}]
[null,null,null,null,null,"Apports en nature",null,null,null,null,"-",null,"Apports en nature",null,null,null,null,{"$f":"IF(P$51=0,\"-\",P48/(P$51))","v":"-"}]
[null,null,null,null,null,"Recettes",null,null,null,null,"-",null,"Recettes",null,null,null,null,{"$f":"IF(P$51=0,\"-\",P49/(P$51))","v":"-"}]
[null,null,null,null,null,"TOTAL AUTOFINANCEMENT",null,null,{"$f":"SUM(I46:I49)","v":0},null,"-",null,"TOTAL AUTOFINANCEMENT",null,null,{"$f":"SUM(P46:P49)","v":0},null,{"$f":"IF(P$51=0,\"-\",P50/(P$51))","v":"-"}]
[null,"Coût total éligible",{"$f":"ROUND(C25-C26,0)","v":0},{"$f":"IF(C$51=0,\"-\",C51/(C$51))","v":"-"},null,"Total des ressources",null,null,{"$f":"I40+I44+I50","v":0},null,"-",null,"Total des ressources",null,null,{"$f":"P50+P44+P40","v":0},null,1]
[null,null,null,null,null,null,null,null,{"$f":"I51-C51","v":0},null,null,null,null,null,null,{"$f":"P51-C51","v":0}]
[null,"(*) Le traitement des recettes nettes générées par l'opération varie selon le coût total éligible de l'opération ainsi que de la période durant laquelle elles sont générées.                                                                                                                                                                                                                              \nDans le cas où le projet devrait générer des recettes uniquement durant la période d'exécution de l'opération et que le coût total éligible dépasse 50 000€, alors les recettes prévisionnelles totales doivent être saisies dans cette case, sur la base de l'estimation des recettes réalisée dans l'annexe 5 - Méthode 2. \nDans le cas où le projet devrait générer des recettes au-delà de la période d'exécution de l'opération et si le coût total dépasse un million d'euros, l'assiette éligible doit être définie selon la méthode dite du \"déficit de financement\" (méthode 1 annexe 5). L'assiette éligible du projet est alors estimée dans l'annexe 5 et il n'est pas utile de renseigner la case \"recettes\" du tableau ci-dessus."]

{"sheet":"recap partenaire 3","index":13,"n_rows":53,"n_cols":18,"rows_kept":53,"cut":false,"hidden":false,"merged":[[24,5,25,5],[24,12,25,12],[1,6,3,10],[4,6,4,10],[7,1,7,10],[9,1,9,6],[15,1,15,3],[15,5,15,10],[15,12,15,17],[16,5,16,10],[16,12,16,17],[18,5,23,5],[18,12,23,12],[26,5,31,5],[26,12,31,12],[32,5,38,5],[32,12,38,12],[39,5,39,6],[39,12,39,13],[40,5,40,10],[40,12,40,17],[43,5,43,6],[43,12,43,13],[44,5,44,10],[44,12,44,17],[49,5,49,6],[49,12,49,13],[50,5,50,6],[50,12,50,13],[52,1,52,10]]}
[]
[null,null,"Intitulé de l'opération",{"$f":"'Dépenses prévisionnelles'!D2","v":0},null,null,"Annexe 1 : Plan de financement\nProgrammation FEDER Massif central 2014-2020\nConvention interrégionale du Massif central"]
[null,null,"Bénéficiaire",{"$f":"'Dépenses prévisionnelles'!D3","v":0}]
[null,null,"N° administratif du dossier",{"$f":"'Dépenses prévisionnelles'!D4","v":0}]
[null,null,"Dates de début et de fin de l'opération",{"$f":"'Dépenses prévisionnelles'!D5","v":0},null,null," Cadre réglementaire : Programme Opérationnel Interrégionnal FEDER Massif central, Convention interrégionale du Massif central"]
[]
[]
[null,"Onglet 2 - Tableau des ressources prévisionnelles de l'opération"]
[]
[null,"RECAPITULATIF DU PARTENAIRE 3"]
[]
[null,"Les co-financements sollicités couvrent-ils la même période d'exécution et la même assiette de dépenses éligibles ? "]
[]
[]
[null,"Catégories de dépenses","Montant","%",null,"Nature des financements","Nom du financeur","Précisions (date et références d'obtention de l'aide : délibération, arrêté, convention...)","Montant (euros)","Assiette retenue par le cofinanceur","%",null,"Nature des financements","Nom du financeur","Précisions (date et références d'obtention de l'aide : délibération, arrêté, convention...)","Montant (euros)","Assiette retenue par le cofinanceur","%"]
[null,"Informations à remplir par le porteur de projet",null,null,null,"Informations à remplir par le porteur de projet",null,null,null,null,null,null,"A renseigner par le service instructeur"]
[null,{"$f":"'[1]Dépenses prévisionnelles'!B15:AB15","v":"Dépenses directes de personnel "},null,{"$f":"IF(C$51=0,\"-\",C17/(C$51))","v":"-"},null,"FINANCEMENTS PUBLICS",null,null,null,null,null,null,"FINANCEMENTS PUBLICS"]
[null,{"$f":"'[1]Dépenses prévisionnelles'!B47:AB47","v":"Frais de mission du personnel"},null,"-",null,"FEDER","POI Massif central",null,null,{"$f":"C51","v":0},{"$f":"IF(I$51=0,\"-\",I18/(I$51))","v":"-"},null,"FEDER","POI Massif central",null,null,{"$f":"J51","v":0},{"$f":"IF(P$51=0,\"-\",P18/(P$51))","v":"-"}]
[null,{"$f":"'[1]Dépenses prévisionnelles'!B81:AB81","v":"Coûts indirects"},null,"-",null,"REGIONS",null,null,null,null,"-",null,"REGIONS",null,null,null,null,"-"]
[null,{"$f":"'[1]Dépenses prévisionnelles'!B114:AB114","v":"Prestations externes"},null,"-",null,null,null,null,null,null,"-",null,null,null,null,null,null,"-"]
[null,{"$f":"'[1]Dépenses prévisionnelles'!B146:AB146","v":"Investissements matériels et immatériels"},null,"-",null,null,null,null,null,null,"-",null,null,null,null,null,null,"-"]
[null,{"$f":"'[1]Dépenses prévisionnelles'!B179:AB179","v":"Acquisitions foncières et immobilières"},null,"-",null,null,null,null,null,null,"-",null,null,null,null,null,null,"-"]
[null,{"$f":"'[1]Dépenses prévisionnelles'!B211:AB211","v":"Apports en nature"},null,"-",null,null,null,null,null,null,"-",null,null,null,null,null,null,"-"]
[null,{"$f":"'[1]Dépenses prévisionnelles'!B243:AB243","v":"Autres dépenses (à spécifier)"},null,"-",null,null,null,null,null,null,"-",null,null,null,null,null,null,"-"]
[null,"Total des dépenses ",{"$f":"ROUND(SUM(C17:C24),0)","v":0},{"$f":"IF(C25=0,0,C25/C25)","v":0},null,"ETAT",null,null,null,null,"-",null,"ETAT",null,null,null,null,"-"]
[null,"Recettes nettes générées par l'opération (*)",null,0,null,null,null,null,null,null,"-",null,null,null,null,null,null,"-"]
[null,"Total des recettes nettes",{"$f":"C26","v":0},{"$f":"IF(C27=0,0,C27/D25)","v":0},null,"DEPARTEMENTS",null,null,null,null,"-",null,"DEPARTEMENTS",null,null,null,null,"-"]
[null,null,null,null,null,null,null,null,null,null,"-",null,null,null,null,null,null,"-"]
[null,null,null,null,null,null,null,null,null,null,"-",null,null,null,null,null,null,"-"]
[null,null,null,null,null,null,null,null,null,null,"-",null,null,null,null,null,null,"-"]
[null,null,null,null,null,null,null,null,null,null,"-",null,null,null,null,null,null,"-"]
[null,null,null,null,null,null,null,null,null,null,"-",null,null,null,null,null,null,"-"]
[null,null,null,null,null,"Autres financeurs publics (à préciser)",null,null,null,null,"-",null,"Autres financeurs publics (à préciser)",null,null,null,null,"-"]
[null,null,null,null,null,null,null,null,null,null,"-",null,null,null,null,null,null,"-"]
[null,null,null,null,null,null,null,null,null,null,"-",null,null,null,null,null,null,"-"]
[null,null,null,null,null,null,null,null,null,null,"-",null,null,null,null,null,null,"-"]
[null,null,null,null,null,null,null,null,null,null,"-",null,null,null,null,null,null,"-"]
[null,null,null,null,null,null,null,null,null,null,"-",null,null,null,null,null,null,"-"]
[null,null,null,null,null,null,null,null,null,null,"-",null,null,null,null,null,null,"-"]
[null,null,null,null,null,"TOTAL FINANCEMENTS PUBLICS",null,null,{"$f":"SUM(I18:I39)","v":0},null,"-",null,"TOTAL FINANCEMENTS PUBLICS",null,null,{"$f":"SUM(P18:P39)","v":0},null,"-"]
[null,null,null,null,null,"FINANCEMENTS PRIVES",null,null,null,null,null,null,"FINANCEMENTS PRIVES"]
[null,null,null,null,null,"Financement privé (à préciser)",null,null,null,null,{"$f":"IF(I$51=0,\"-\",I42/(I$51))","v":"-"},null,"Financement privé (à préciser)",null,null,null,null,{"$f":"IF(P$51=0,\"-\",P42/(P$51))","v":"-"}]
[null,null,null,null,null,"Financement privé (à préciser)",null,null,null,null,{"$f":"IF(I$51=0,\"-\",I43/(I$51))","v":"-"},null,"Financement privé (à préciser)",null,null,null,null,{"$f":"IF(P$51=0,\"-\",P43/(P$51))","v":"-"}]
[null,null,null,null,null,"TOTAL FINANCEMENTS PRIVES",null,null,{"$f":"SUM(I42:I43)","v":0},null,{"$f":"IF(I$51=0,\"-\",I44/(I$51))","v":"-"},null,"TOTAL FINANCEMENTS PRIVES",null,null,{"$f":"SUM(P42:P43)","v":0},null,{"$f":"IF(P$51=0,\"-\",P44/(P$51))","v":"-"}]
[null,null,null,null,null,"AUTOFINANCEMENT",null,null,null,null,null,null,"AUTOFINANCEMENT"]
[null,null,null,null,null,"Ressources propres",null,null,null,null,{"$f":"IF(I$51=0,\"-\",I46/(I$51))","v":"-"},null,"Ressources propres",null,null,null,null,{"$f":"IF(P$51=0,\"-\",P46/(P$51))","v":"-"}]
[null,null,null,null,null,"Emprunts",null,null,null,null,"-",null,"Emprunts",null,null,null,null,{"$f":"IF(P$51=0,\"-\",P47/(P$51))","v":"-"}]
[null,null,null,null,null,"Apports en nature",null,null,null,null,"-",null,"Apports en nature",null,null,null,null,{"$f":"IF(P$51=0,\"-\",P48/(P$51))","v":"-"}]
[null,null,null,null,null,"Recettes",null,null,null,null,"-",null,"Recettes",null,null,null,null,{"$f":"IF(P$51=0,\"-\",P49/(P$51))","v":"-"}]
[null,null,null,null,null,"TOTAL AUTOFINANCEMENT",null,null,{"$f":"SUM(I46:I49)","v":0},null,"-",null,"TOTAL AUTOFINANCEMENT",null,null,{"$f":"SUM(P46:P49)","v":0},null,{"$f":"IF(P$51=0,\"-\",P50/(P$51))","v":"-"}]
[null,"Coût total éligible",{"$f":"ROUND(C25-C26,0)","v":0},{"$f":"IF(C$51=0,\"-\",C51/(C$51))","v":"-"},null,"Total des ressources",null,null,{"$f":"I40+I44+I50","v":0},null,"-",null,"Total des ressources",null,null,{"$f":"P50+P44+P40","v":0},null,1]
[null,null,null,null,null,null,null,null,{"$f":"I51-C51","v":0},null,null,null,null,null,null,{"$f":"P51-C51","v":0}]
[null,"(*) Le traitement des recettes nettes générées par l'opération varie selon le coût total éligible de l'opération ainsi que de la période durant laquelle elles sont générées.                                                                                                                                                                                                                              \nDans le cas où le projet devrait générer des recettes uniquement durant la période d'exécution de l'opération et que le coût total éligible dépasse 50 000€, alors les recettes prévisionnelles totales doivent être saisies dans cette case, sur la base de l'estimation des recettes réalisée dans l'annexe 5 - Méthode 2. \nDans le cas où le projet devrait générer des recettes au-delà de la période d'exécution de l'opération et si le coût total dépasse un million d'euros, l'assiette éligible doit être définie selon la méthode dite du \"déficit de financement\" (méthode 1 annexe 5). L'assiette éligible du projet est alors estimée dans l'annexe 5 et il n'est pas utile de renseigner la case \"recettes\" du tableau ci-dessus."]

{"sheet":"Feuil3","index":14,"n_rows":0,"n_cols":0,"rows_kept":0,"cut":false,"hidden":false,"merged":[]}